{"text_format":"1","workbook":"xlsx","n_sheets":3,"sheets":["निर्देश","Student Record","FORM"],"not_rendered":{"charts":0,"images":9,"macros":1,"external_links":0,"defined_names":1,"comments":0,"pivot_tables":0},"unopened":[],"bounds":{"document_bytes":16777216,"sheet_cells":100000,"rows_first":2000,"rows_last":500,"rows_between":2000,"halvings":0,"cell_chars":16384,"cell_head_chars":4096},"cells_cut":0,"cells_raw":0,"read":"whole","date_system":"1900"}

{"sheet":"निर्देश","index":0,"n_rows":35,"n_cols":11,"rows_kept":35,"cut":false,"hidden":false,"merged":[[32,2,32,11],[33,2,33,11],[34,2,34,11],[30,10,30,11],[31,0,31,12],[2,2,2,10],[23,1,23,11],[24,2,30,3],[24,6,30,7],[24,4,30,5],[24,8,29,9],[24,10,29,11],[10,1,10,11]]}
[]
[]
[null,null,"महत्वपूर्ण निर्देश "]
[null,"1. जैसे ही आप excle शीट ओपन करते है आपको सबसे पहला कार्य करना है की फॉर्म शीट में अपने विद्यालय ओर जिस सत्र के फॉर्म प्रिन्ट करने है "]
[null,"उस सत्र का नाम शीट में लिख दे|"]
[null,"2. अपनी स्कूल का स्टूडेंट डाटा डाउनलोड कर Student Record शीट में पेस्ट करे ताकि प्रिन्ट उसी अनुरूप आए "]
[null,"3. आपको यदि फॉर्म में स्टूडेंट की फोटो लगानी है तो अपने पीसी की स्क्रीन पर एक फ़ोल्डर बनाए उसका नाम STUDENT PHOTO जैसा यह लिखा है वैसा ही लिखे"]
[null,"उस फ़ोल्डर में आपको स्टूडेंट की फोटो डालनी है ओर उस फोटो का नाम उस स्टूडेंट के SR नंबर लिखने है (जैसे 878) "]
[null,"4. यदि आपके पीसी में फाइल काम नहीं कर रही है तो एक बार यह चेक करे  की आपका Developer tab ओपन है या नहीं "]
[null," यदि developer tab ओपन नहीं है तो नीचे दिए लिंक से विडिओ देख कर tab ओपन करे"]
[null,"विडिओ देखने के लिए क्लिक करे "]
[null,"7. यदि आपका डेवलपर टैब ओपन है तो नीचे दिए गई सेटिंग को चेक करे यदि फिर भी समस्या बनी रहती है तो हमे मेल करे shivrajmeghwanshibarola567@gmail.com"]
[]
[]
[]
[]
[]
[]
[]
[]
[]
[]
[]
[null,"मार्गदर्शक "]
[null,null," Ahwini Kumar",null,"Mr. Heera Lal Jat",null,"Ram Karan Beniwal"]
[]
[]
[]
[]
[]
[null,null,null,null,null,null,null,null,"Mr. Parmanand Meghwal",null,"Mr. Shivraj Meghwanshi"]
["हमारे द्वारा बनाई गई आवश्यक फाइल डॉक्यूमेंट एक्सल फाइल प्राप्त करने के लिए निमन्नालिखित लिंक पर क्लिक करे  "]
[null,{"$f":"_xlfn.UNICHAR(9758)","v":"☞"},"https://rajsevak.com/shivraj-meghwanshi/"]
[null,{"$f":"_xlfn.UNICHAR(9758)","v":"☞"},"https://rajteachers.net/shivraj-meghwanshi"]
[null,"☞","https://www.ashwinisharma.com/p/shivraj-meghwanshi-excel-program-excel.html"]

{"sheet":"Student Record","index":1,"n_rows":365,"n_cols":30,"rows_kept":365,"cut":false,"hidden":false,"merged":[]}
["Class","Section","SRNO","DOA","Name","Late Status","FatherName","MotherName","Gender","Dob","ClassRollNo","ExamRollNumber","School Total Working Days","Student Total Attendence","Category","Religion","Previous Year Marks","Name Of School","School UDise Code","Aadhar No of Student","Bhamashash Card","Mobile No Student(Father/Mother/Guardian","Student Permanent Address","Annual Parental Income","CWSN Status","BPL Status","Minority Status","Age On Present(In Years)","Co-Curricular Activity","Distance From School"]
[1,"A",926,"2025-07-09","Arti Prajapat",null,"Mukesh Kumhar","Shrwani","F","2020-05-15",null,null,null,null,"OBC","Hindu",null,"GOVT. SENIOR SECONDARY SCHOOL MORAJHADI (214242)",8210302201,null,null,7073998294,"morajhadi,shrinagar,morajhadi,305402",48000,"N","N","No",5,"None",0]
[1,"A",941,"2025-07-16","Jyoti",null,"Mukesh","Maina","F","2019-04-15",null,null,null,null,"OBC","Hindu",null,"GOVT. SENIOR SECONDARY SCHOOL MORAJHADI (214242)",8210302201,null,null,9898989898,"MORAJHADI,SHRINAGAR,MORAJHADI,305402",48000,"N","N","No",6,"None",1]
[1,"A",924,"2025-07-01","Kismat Choudhary",null,"Jay Prakash Choudhary","Bharti","F","2019-05-01",null,null,null,null,"OBC","Hindu",null,"GOVT. SENIOR SECONDARY SCHOOL MORAJHADI (214242)",8210302201,null,null,7073214434,"morajhadi,shrinagar,morajhadi,305402",60000,"N","N","No",6,"None",1]
[1,"A",940,"2025-07-16","Kumkum Meghwanshi",null,"Mukesh Meghwanshi","Munim Meghwanshi","F","2019-04-24",null,null,null,null,"SC","Hindu",null,"GOVT. SENIOR SECONDARY SCHOOL MORAJHADI (214242)",8210302201,null,null,9166104771,"morajhadi,shrinagar,morajhadi,305402",60000,"N","N","No",6,"None",1]
[1,"A",951,"2025-07-21","Neeraj Bansali",null,"Ranjeet Regar","Pushpa","M","2020-03-20",null,null,null,null,"SC",null,null,"GOVT. SENIOR SECONDARY SCHOOL MORAJHADI (214242)",8210302201,null,null,9636093254,null,null,"N","Y",null,5,null,1]
[1,"A",937,"2025-07-14","Payal",null,"Pankaj Kumar","Kanchan","F","2019-08-14",null,null,null,null,"OBC","Hindu",null,"GOVT. SENIOR SECONDARY SCHOOL MORAJHADI (214242)",8210302201,null,null,8290856599,"morajhadi,shrinagar,morajhadi,305402",48000,"N","N","No",6,"None",1]
[1,"A",934,"2025-07-14","Tannu Jat",null,"Sardar","Surgyan","F","2017-09-15",null,null,null,null,"OBC","Hindu",null,"GOVT. SENIOR SECONDARY SCHOOL MORAJHADI (214242)",8210302201,null,null,6376959531,"morajhadi,shrinagar,morajhadi,305402",48000,"N","N","No",8,"None",1]
[2,"A",907,"2024-07-25","Aarushi",null,"Satyanarayan Jat","Ajodya","F","2019-04-19",null,null,null,null,"OBC","Hindu",null,"GOVT. SENIOR SECONDARY SCHOOL MORAJHADI (214242)",8210302201,"XXXX5052",null,8529735978,"MORAJHADI,SHRINAGAR,MORAJHADI,305402",0,"N","N","No",6,"None",0]
[2,"A",920,"2024-08-20","Anjali Meghwanshi",null,"Shankar","Gyarsi Meghwanshi","F","2019-03-21",null,null,null,null,"SC","Hindu",null,"GOVT. SENIOR SECONDARY SCHOOL MORAJHADI (214242)",8210302201,"XXXX0328",null,9929812329,"morajhadi,shrinagar,morajhadi,305402",60000,"N","N","No",6,"None",0]
[2,"A",906,"2024-07-25","Annu Jat",null,"Ramswaroop","Bhagawati","F","2019-02-11",null,null,null,null,"OBC","Hindu",null,"GOVT. SENIOR SECONDARY SCHOOL MORAJHADI (214242)",8210302201,"XXXX6543",null,9680679728,"MORAJHADI,SHRINAGAR,MORAJHADI,305402",0,"N","N","No",6,"None",0]
[2,"A",901,"2024-07-19","Bhumika Sain",null,"Rajesh Sain","Lalita Sain","F","2019-03-28",null,null,null,null,"OBC","Hindu",null,"GOVT. SENIOR SECONDARY SCHOOL MORAJHADI (214242)",8210302201,"XXXX8084",null,9772866674,"MORAJHADI,SHRINAGAR,MORAJHADI,305402",0,"N","N","No",6,"None",0]
[2,"A",885,"2024-07-08","Dinesh Regar",null,"Kalu Ram","Rinku","M","2018-07-06",null,null,null,null,"SC","Hindu",null,"GOVT. SENIOR SECONDARY SCHOOL MORAJHADI (214242)",8210302201,"XXXX8689",null,8290504398,"MORAJHADI,SHRINAGAR,MORAJHADI,305402",0,"N","N","No",7,"None",0]
[2,"A",914,"2024-07-31","Jagdish Prajapat",null,"Hansraj","Prem","M","2019-08-01",null,null,null,null,"OBC","Hindu",null,"GOVT. SENIOR SECONDARY SCHOOL MORAJHADI (214242)",8210302201,"XXXX9393",null,9929611454,"MORAJHADI,SHRINAGAR,MORAJHADI,305402",0,"N","N","No",6,"None",0]
[2,"A",877,"2024-07-04","Khushi",null,"Mukesh","Shrwani","F","2018-05-19",null,null,null,null,"OBC","Hindu",null,"GOVT. SENIOR SECONDARY SCHOOL MORAJHADI (214242)",8210302201,"XXXX9543",null,9829757763,"MORAJHADI,SHRINAGAR,MORAJHADI,305402",55000,"N","N","No",7,"None",0]
[2,"A",922,"2024-09-02","Khushi Jat",null,"Parmeshwar","Shanti","F","2018-08-12",null,null,null,null,"OBC","Hindu",null,"GOVT. SENIOR SECONDARY SCHOOL MORAJHADI (214242)",8210302201,"XXXX6362",null,9216846229,"morajhadi ,shrinagar,morajhadi,305402",50000,"N","N","No",7,"None",0]
[2,"A",921,"2024-08-20","Lokesh Prajapat",null,"Hardayal","Sona","M","2018-05-15",null,null,null,null,"OBC","Hindu",null,"GOVT. SENIOR SECONDARY SCHOOL MORAJHADI (214242)",8210302201,"XXXX6114",null,9829116673,"morajhadi,shrinagar,morajhadi,305402",60000,"N","N","No",7,"None",0]
[2,"A",878,"2024-07-04","Mansha Jat",null,"Prem Chand Jat","Gamla Jat","F","2018-05-13",null,null,null,null,"OBC","Hindu",null,"GOVT. SENIOR SECONDARY SCHOOL MORAJHADI (214242)",8210302201,"XXXX9859",null,9784088071,"MORAJHADI,SHRINAGAR,MORAJHADI,305402",60000,"N","N","No",7,"None",0]
[2,"A",875,"2024-07-02","Mona",null,"Ramesh Chand","Gita Devi","F","2018-06-11",null,null,null,null,"SC","Hindu",null,"GOVT. SENIOR SECONDARY SCHOOL MORAJHADI (214242)",8210302201,"XXXX2685",null,8003238676,"BHAGWANTPURA,SARWAR,BHAGWANTPURA,305403",60000,"N","N","No",7,"None",0]
[2,"A",884,"2024-07-06","Monika Prajapat",null,"Prakash","Parvati","F","2018-04-20",null,null,null,null,"OBC","Hindu",null,"GOVT. SENIOR SECONDARY SCHOOL MORAJHADI (214242)",8210302201,"XXXX8935",null,9116833033,"MORAJHADI,SHRINAGAR,MORAJHADI,305402",0,"N","N","No",7,"None",0]
[2,"A",879,"2024-07-05","Pooja Jat",null,"Shankar","Sharda Devi","F","2018-08-25",null,null,null,null,"OBC","Hindu",null,"GOVT. SENIOR SECONDARY SCHOOL MORAJHADI (214242)",8210302201,"XXXX5942",null,7425880371,"MORAJHADI,SHRINAGAR,MORAJHADI,305402",0,"N","N","No",7,"None",0]
[2,"A",880,"2024-07-05","Priya Jat",null,"Ganesh","Saroj Devi","F","2017-12-30",null,null,null,null,"OBC","Hindu",null,"GOVT. SENIOR SECONDARY SCHOOL MORAJHADI (214242)",8210302201,"XXXX5265",null,9521435886,"MORAJHADI,SHRINAGAR,MORAJHADI,305402",0,"N","N","No",8,"None",0]
[2,"A",881,"2024-07-06","Radhika",null,"Dhanraj","Mathra","F","2018-06-01",null,null,null,null,"OBC","Hindu",null,"GOVT. SENIOR SECONDARY SCHOOL MORAJHADI (214242)",8210302201,"XXXX5589",null,9784100510,"MORAJHADI,SHRINAGAR,MORAJHADI,305402",0,"N","N","No",7,"None",0]
[2,"A",923,"2024-09-02","Rajveer Jat",null,"Prithviraj","Suman Devi","M","2019-11-09",null,null,null,null,"OBC","Hindu",null,"GOVT. SENIOR SECONDARY SCHOOL MORAJHADI (214242)",8210302201,"XXXX6423",null,9928775212,"morajhadi ,shrinagar,morajhadi,305402",55000,"N","N","No",6,"None",0]
[2,"A",905,"2024-07-19","Rinku Prajapat",null,"Kailash","Parvati","F","2018-11-15",null,null,null,null,"OBC","Hindu",null,"GOVT. SENIOR SECONDARY SCHOOL MORAJHADI (214242)",8210302201,"XXXX8744",null,9636679743,"MORAJHADI,SHRINAGAR,MORAJHADI,305402",0,"N","N","No",7,"None",0]
[2,"A",899,"2024-07-18","Shivangi",null,"Hanuman","Chaina","F","2017-03-23",null,null,null,null,"OBC","Hindu",null,"GOVT. SENIOR SECONDARY SCHOOL MORAJHADI (214242)",8210302201,"XXXX4862",null,9680248530,"MORAJHADI,SHRINAGAR,MORAJHADI,305402",0,"N","N","No",8,"None",0]
[2,"A",874,"2024-07-02","Shivani",null,"Prithvi Raj","Suman Devi","F","2018-10-20",null,null,null,null,"OBC","Hindu",null,"GOVT. SENIOR SECONDARY SCHOOL MORAJHADI (214242)",8210302201,"XXXX9004",null,9928775212,"MORAJHADI,SHRINAGAR,MORAJHADI,305402",60000,"N","N","No",7,"None",0]
[2,"A",882,"2024-07-06","Tannu",null,"Basram","Shila","F","2018-06-14",null,null,null,null,"OBC","Hindu",null,"GOVT. SENIOR SECONDARY SCHOOL MORAJHADI (214242)",8210302201,"XXXX8326",null,9680681475,"MORAJHADI,SHRINAGAR,MORAJHADI,305402",0,"N","N","No",7,"None",0]
[2,"A",876,"2024-07-02","Vinod Choudhary",null,"Mangi Lal Choudhary","Shobhag Devi Jat","M","2017-09-04",null,null,null,null,"OBC","Hindu",null,"GOVT. SENIOR SECONDARY SCHOOL MORAJHADI (214242)",8210302201,"XXXX7552",null,6350127158,"MORAJHADI,SHRINAGARA,MORAJHADI,305402",60000,"N","N","No",8,"None",0]
[3,"A",814,"2023-07-06","Achuki",null,"Sanwara","Samotra Devi","F","2016-02-06",null,null,null,null,"OBC","Hindu",null,"GOVT. SENIOR SECONDARY SCHOOL MORAJHADI (214242)",8210302201,"XXXX5082",null,7023292099,"moprajhadi,shri nagar,morajhadi,305402",0,"N","N","No",9,"None",0]
[3,"A",837,"2023-07-15","Asha",null,"Mahaveer","Foola","F","2016-05-08",null,null,null,null,"OBC","Hindu",null,"GOVT. SENIOR SECONDARY SCHOOL MORAJHADI (214242)",8210302201,"XXXX4366",null,8306250762,"morajhadi,shri nagar,morajhadi,35402",0,"N","N","No",9,"None",0]
[3,"A",853,"2023-07-21","Ashika",null,"Hariram","Lada Devi","F","2017-01-23",null,null,null,null,"OBC","Hindu",null,"GOVT. SENIOR SECONDARY SCHOOL MORAJHADI (214242)",8210302201,"XXXX1296",null,9571878347,"morajhadi,shri nagar,morajhadi,305402",0,"N","N","No",8,"None",0]
[3,"A",893,"2024-07-15","Bhawana Choudhary",null,"Mahaveer Prasad Jat","Sita","F","2017-08-31",null,null,null,null,"OBC","Hindu",null,"GOVT. SENIOR SECONDARY SCHOOL MORAJHADI (214242)",8210302201,"XXXX5647",null,9649377821,null,null,"N","N","No",8,"None",0]
[3,"A",863,"2023-08-10","Deepak Jat",null,"Ramprasad","Shila Devi","M","2017-10-19",null,null,null,null,"OBC","Hindu",null,"GOVT. SENIOR SECONDARY SCHOOL MORAJHADI (214242)",8210302201,"XXXX2722",null,8290200950,"morajhadi,shri nagar,morajhadi,305402",0,"N","N","No",8,"None",0]
[3,"A",810,"2023-07-04","Dilkhush",null,"Golu Ram","Ramkani","M","2017-06-03",null,null,null,null,"OBC","Hindu",null,"GOVT. SENIOR SECONDARY SCHOOL MORAJHADI (214242)",8210302201,"XXXX0307",null,9660614808,"morajhadi,shri nagar,morajhadi,305402",0,"N","N","No",8,"None",0]
[3,"A",902,"2024-07-19","Hansa Prajapat",null,"Prakash Prajapat","Parvati","F","2016-08-21",null,null,null,null,"OBC","Hindu",null,"GOVT. SENIOR SECONDARY SCHOOL MORAJHADI (214242)",8210302201,"XXXX3911",null,9116833033,"KALYANPURA ,Sarwar,Tantoti ,305627",40000,"N","N","No",9,"None",0]
[3,"A",844,"2023-07-18","Khushi",null,"Pardhan","Mamata","F","2017-01-16",null,null,null,null,"OBC","Hindu",null,"GOVT. SENIOR SECONDARY SCHOOL MORAJHADI (214242)",8210302201,"XXXX9153",null,9950951302,"morajhadi,shri nagar,morajhadi,305402",0,"N","N","No",8,"None",0]
[3,"A",929,"2025-07-10","Komal Prajapat",null,"Gopal Lal Kumhar","Rekha","F","2013-11-05",null,null,null,null,"OBC","Hindu",null,"GOVT. SENIOR SECONDARY SCHOOL MORAJHADI (214242)",8210302201,"XXXX7478",null,8890450366,"gharta,banera,gharta,311030",60000,"Y","N","No",12,"None",0]
[3,"A",822,"2023-07-11","Kumkum",null,"Shankar","Sharda Devi","F","2017-05-25",null,null,null,null,"OBC","Hindu",null,"GOVT. SENIOR SECONDARY SCHOOL MORAJHADI (214242)",8210302201,"XXXX6428",null,8890196371,"morajhadi,shri nagar,morajhadi,305402",0,"N","N","No",8,"None",0]
[3,"A",842,"2023-07-18","Mitali prajapat",null,"Shetan Prajapat","Ramkanya Devi","F","2017-11-07",null,null,null,null,"OBC","Hindu",null,"GOVT. SENIOR SECONDARY SCHOOL MORAJHADI (214242)",8210302201,"XXXX7768",null,9660632244,"morajhadi,shri nagar,morajhadi,305402",0,"N","N","No",8,"None",0]
[3,"A",811,"2023-07-04","Nesu",null,"Ramswarup","Bhagawati Devi","F","2017-03-23",null,null,null,null,"OBC","Hindu",null,"GOVT. SENIOR SECONDARY SCHOOL MORAJHADI (214242)",8210302201,"XXXX1474",null,9680679728,"morajhadi,shri nagar,morajhadi,305402",0,"N","N","No",8,"None",0]
[3,"A",813,"2023-07-05","Payal Bansali",null,"Chotu","Mamta Devi","F","2017-11-08",null,null,null,null,"SC","Hindu",null,"GOVT. SENIOR SECONDARY SCHOOL MORAJHADI (214242)",8210302201,"XXXX2253",null,9521886591,"morajhadi,sheri nagar,morajhadi,305402",0,"N","N","No",8,"None",0]
[3,"A",812,"2023-07-04","Priyanka Prajapat",null,"Haradayal","Sona Devi","F","2017-01-01",null,null,null,null,"OBC","Hindu",null,"GOVT. SENIOR SECONDARY SCHOOL MORAJHADI (214242)",8210302201,"XXXX3485",null,9829116673,"morajhadi,shri nagar,morajhadi,305402",0,"N","N","No",8,"None",0]
[3,"A",894,"2024-07-15","Radhika Jat",null,"Hanuman Jat","Kamlesh","F","2016-08-03",null,null,null,null,"OBC",null,null,"GOVT. SENIOR SECONDARY SCHOOL MORAJHADI (214242)",8210302201,"XXXX9145",null,9649377821,null,null,"N","Y",null,9,null,0]
[3,"A",839,"2023-07-15","Sonu Bheel",null,"Hanuman","Neraj","F","2016-06-16",null,null,null,null,"ST","Hindu",null,"GOVT. SENIOR SECONDARY SCHOOL MORAJHADI (214242)",8210302201,"XXXX0001",null,7976550858,"morajhadi,shri nagar,morajhadi,305412",0,"N","N","No",9,"None",1]
[3,"A",831,"2023-07-13","Yartika Sain",null,"Rajesh Sain","Lalita Sain","F","2017-08-30",null,null,null,null,"OBC","Hindu",null,"GOVT. SENIOR SECONDARY SCHOOL MORAJHADI (214242)",8210302201,"XXXX6548",null,9509975769,"morajhadi,shri nagar,morajhadi,305402",0,"N","N","No",8,"None",0]
[4,"A",762,"2022-07-05","Aamna",null,"Shahbuddin","Madina Bano","F","2017-01-03",null,null,null,null,"OBC","Hindu",null,"GOVT. SENIOR SECONDARY SCHOOL MORAJHADI (214242)",8210302201,"XXXX1402",null,9982674461,"V/PO-MORAJHADI,VILL-MORAJHADI ,,305402",48000,"N","N","No",8,"None",0]
[4,"A",769,"2022-07-12","Anjali",null,"Prithvi Raj","Suman Devi","F","2017-03-05",null,null,null,null,"OBC","Hindu",null,"GOVT. SENIOR SECONDARY SCHOOL MORAJHADI (214242)",8210302201,"XXXX8597",null,9928775212,"V/PO-MORAJHADI,VILL-MORAJHADI ,,305402",48000,"N","N","No",8,"None",0]
[4,"A",809,"2022-12-12","Anju",null,"Mahendra","Kopan","F","2016-06-22",null,null,null,null,"OBC","Hindu",null,"GOVT. SENIOR SECONDARY SCHOOL MORAJHADI (214242)",8210302201,"XXXX0096",null,9784162807,"MORAJHADI,SHRINAGAR,MORAJHADI,305402",48000,"N","N","No",9,"None",2]
[4,"A",803,"2022-08-17","Anju",null,"Hansraj","Kali","F","2017-01-23",null,null,null,null,"OBC","Hindu",null,"GOVT. SENIOR SECONDARY SCHOOL MORAJHADI (214242)",8210302201,"XXXX9019",null,9660995235,"MORAJHADI ,SHRINAGAR,MORAJHADI ,305402",50000,"N","N","No",8,"None",0]
[4,"A",794,"2022-07-27","Ankit",null,"Kalu Ram","Rinku","M","2016-06-01",null,null,null,null,"SC",null,null,"GOVT. SENIOR SECONDARY SCHOOL MORAJHADI (214242)",8210302201,"XXXX7750",null,9829441641,null,null,"N","Y",null,9,null,0]
[4,"A",770,"2022-07-12","Deepika Jat",null,"Prem Chand Jat","Gamla Jat","F","2016-11-17",null,null,null,null,"OBC","Hindu",null,"GOVT. SENIOR SECONDARY SCHOOL MORAJHADI (214242)",8210302201,"XXXX0466",null,9785841171,"morajhadi,srinagar,morajhadi,305402",0,"N","N","No",9,"None",0]
[4,"A",798,"2022-07-30","Dilkhush",null,"Lalaram","Mathara","M","2017-01-20",null,null,null,null,"OBC",null,null,"GOVT. SENIOR SECONDARY SCHOOL MORAJHADI (214242)",8210302201,"XXXX9772",null,7340609672,null,null,"N","Y",null,8,null,0]
[4,"A",781,"2022-07-13","Dilkhush Prajapat",null,"Dharmichand","Neela","M","2016-11-12",null,null,null,null,"OBC",null,null,"GOVT. SENIOR SECONDARY SCHOOL MORAJHADI (214242)",8210302201,"XXXX6632",null,7726887841,null,null,"N","Y",null,9,null,0]
[4,"A",808,"2022-09-30","Happy",null,"Naresh","Pooja","M","2016-05-12",null,null,null,null,"SC",null,null,"GOVT. SENIOR SECONDARY SCHOOL MORAJHADI (214242)",8210302201,"XXXX6499",null,7878669098,"V/PO-MORAJHADI,VILL-MORAJHADI ,morajhadi,305402",null,"N","N",null,9,"None",0]
[4,"A",780,"2022-07-13","Kanaram Prajapat",null,"Budhraj","Sumitra","M","2016-12-05",null,null,null,null,"OBC",null,null,"GOVT. SENIOR SECONDARY SCHOOL MORAJHADI (214242)",8210302201,"XXXX1435",null,9929339429,null,null,"N","N",null,9,"None",0]
[4,"A",787,"2022-07-22","Khusi Prajapat",null,"Kailash","Parvati","F","2016-09-13",null,null,null,null,"OBC","Hindu",null,"GOVT. SENIOR SECONDARY SCHOOL MORAJHADI (214242)",8210302201,"XXXX5841",null,9636679743,"MORAJHADI ,SHRINAGAR,MORAJHADI,305402",48000,"N","N","No",9,"None",0]
[4,"A",872,"2023-10-27","Monika",null,"Kanaram","Norati Devi","F","2017-04-02",null,null,null,null,"OBC","Hindu",null,"GOVT. SENIOR SECONDARY SCHOOL MORAJHADI (214242)",8210302201,"XXXX6276",null,9829798229,"MORAJHADI ,SHRINAGAR,MORAJHADI,305402",48000,"N","N","No",8,"None",0]
[4,"A",801,"2022-08-17","Nitesh Jat",null,"Sukhdev Jat","Samotra","M","2017-07-30",null,null,null,null,"OBC",null,null,"GOVT. SENIOR SECONDARY SCHOOL MORAJHADI (214242)",8210302201,"XXXX6250",null,9571479136,null,null,"N","Y",null,8,null,0]
[4,"A",766,"2022-07-12","Rakesh",null,"Heamraj","Ladi","M","2015-10-15",null,null,null,null,"OBC","Hindu",null,"GOVT. SENIOR SECONDARY SCHOOL MORAJHADI (214242)",8210302201,"XXXX6441",null,9929612691,"V/PO-MORAJHADI,VILL-MORAJHADI ,,305402",48000,"N","N","No",10,"None",0]
[4,"A",805,"2022-09-03","Rihan Peenara",null,"Peeru Peenara","Gulshan","M","2016-10-15",null,null,null,null,"OBC",null,null,"GOVT. SENIOR SECONDARY SCHOOL MORAJHADI (214242)",8210302201,"XXXX4503",null,8769395038,null,null,"N","Y",null,9,null,0]
[4,"A",925,"2025-07-09","Rinu",null,"Basram","Sheela","F","2017-01-03",null,null,null,null,"OBC",null,null,"GOVT. SENIOR SECONDARY SCHOOL MORAJHADI (214242)",8210302201,null,null,9680681475,null,null,"N","Y",null,8,null,1]
[4,"A",816,"2023-07-11","Shimla",null,"Ramraj Jat","Rameshwari Devi","F","2016-01-10",null,null,null,null,"OBC","Hindu",null,"GOVT. SENIOR SECONDARY SCHOOL MORAJHADI (214242)",8210302201,"XXXX7038",null,9680679728,"MORAJHDI ,SHRINAGAR,MORAJHADI,305402",0,"N","N","No",9,"None",0]
[4,"A",760,"2022-07-05","Tannu",null,"Sonu","Gaytri","F","2016-11-28",null,null,null,null,"SC","Hindu",null,"GOVT. SENIOR SECONDARY SCHOOL MORAJHADI (214242)",8210302201,"XXXX5231",null,9588942595,"V/PO-MORAJHADI,VILL-MORAJHADI ,morajhadi,305402",50000,"N","N","No",9,"None",0]
[4,"A",768,"2022-07-12","Virat",null,"Ramraj","Manju","M","2015-09-07",null,null,null,null,"SC","Hindu",null,"GOVT. SENIOR SECONDARY SCHOOL MORAJHADI (214242)",8210302201,"XXXX4918",null,7023127509,"V/PO-MORAJHADI,VILL-MORAJHADI ,,305402",48000,"N","N","No",10,"None",0]
[5,"A",840,"2023-07-15","Anju",null,"Mahaveer Bheel","Mandraj","F","2014-01-01",null,null,null,null,"ST",null,null,"GOVT. SENIOR SECONDARY SCHOOL MORAJHADI (214242)",8210302201,"XXXX9382",null,7976550858,null,null,"N","Y",null,11,null,1]
[5,"A",717,"2021-08-05","Anju",null,"Dhanraj Choudhary","Mathara Devi","M","2016-02-10",null,null,null,null,"OBC","Hindu",null,"GOVT. SENIOR SECONDARY SCHOOL MORAJHADI (214242)",8210302201,"XXXX4161",null,9484100510,"V/PO-MORAJHADI,VILL-MORAJHADI ,Morajhadi,305402",80000,"N","N","No",9,"None",0]
[5,"A",677,"2021-06-22","Astha Jat",null,"Ganesh Jat","Saroj Devi","F","2016-07-17",null,null,null,null,"OBC","Hindu",null,"GOVT. SENIOR SECONDARY SCHOOL MORAJHADI (214242)",8210302201,"XXXX8917",null,7425880371,"V/PO-MORAJHADI,VILL-MORAJHADI ,Morajhadi,305402",60000,"N","N","No",9,"None",0]
[5,"A",684,"2021-07-12","Bhanu Jat",null,"Hariram","Asha Devi Choudhary","M","2015-12-30",null,null,null,null,"OBC","Hindu",null,"GOVT. SENIOR SECONDARY SCHOOL MORAJHADI (214242)",8210302201,"XXXX9454",null,9950193738,"V/PO-MORAJHADI,VILL-MORAJHADI ,Morajhadi,305402",60000,"N","N","No",10,"None",0]
[5,"A",939,"2025-07-15","Dharmraj Prajapat",null,"Budhraj Prajapat","Sumitra Devi","M","2014-12-22",null,null,null,null,"OBC",null,null,"GOVT. SENIOR SECONDARY SCHOOL MORAJHADI (214242)",8210302201,null,null,9929339429,null,null,"N","Y",null,11,null,1]
[5,"A",719,"2021-08-09","Dilkhush",null,"Mahavee Bhil","Mandraj","M","2015-12-14",null,null,null,null,"ST","Hindu",null,"GOVT. SENIOR SECONDARY SCHOOL MORAJHADI (214242)",8210302201,"XXXX5492",null,9784253973,"V/PO-MORAJHADI,VILL-MORAJHADI ,Morajhadi,305402",60000,"N","N","No",10,"None",0]
[5,"A",715,"2021-08-04","Jiya Nat",null,"Raju","Shobha","F","2015-08-28",null,null,null,null,"SC","Hindu",null,"GOVT. SENIOR SECONDARY SCHOOL MORAJHADI (214242)",8210302201,"XXXX7673",null,7425816629,"V/PO-MORAJHADI,VILL-MORAJHADI ,Morajhadi,305402",50000,"N","N","No",10,"None",0]
[5,"A",835,"2023-07-13","Kali Jat",null,"Kailash","Ramkanya","F","2012-06-04",null,null,null,null,"OBC",null,null,"GOVT. SENIOR SECONDARY SCHOOL MORAJHADI (214242)",8210302201,"XXXX4543",null,9660845025,null,null,"N","Y",null,13,null,0]
[5,"A",710,"2021-07-30","Khushboo",null,"Mahaveer Meghavanshi","Fornta","F","2016-05-10",null,null,null,null,"SC","Hindu",null,"GOVT. SENIOR SECONDARY SCHOOL MORAJHADI (214242)",8210302201,"XXXX1900",null,8290679563,"V/PO-MORAJHADI,VILL-MORAJHADI ,Morajhadi,305402",80000,"N","N","No",9,"None",0]
[5,"A",702,"2021-07-22","Kiran Bhil",null,"Bablu Bhil","Rekha Devi","F","2013-01-01",null,null,null,null,"ST","Hindu",null,"GOVT. SENIOR SECONDARY SCHOOL MORAJHADI (214242)",8210302201,"XXXX6724",null,9001595086,"V/PO-MORAJHADI,VILL-MORAJHADI ,Morajhadi,305402",60000,"N","N","No",12,"None",0]
[5,"A",690,"2021-07-14","Komal prajapat",null,"Panchu prajapat","Maya","F","2016-02-02",null,null,null,null,"OBC","Hindu",null,"GOVT. SENIOR SECONDARY SCHOOL MORAJHADI (214242)",8210302201,"XXXX8963",null,9928429376,"V/PO-MORAJHADI,VILL-MORAJHADI ,Morajhadi,305402",60000,"N","N","No",9,"None",0]
[5,"A",735,"2021-09-27","Mangli Prajapat",null,"Bhagchand Prajapat","Panchi Devi","F","2015-10-13",null,null,null,null,"OBC",null,null,"GOVT. SENIOR SECONDARY SCHOOL MORAJHADI (214242)",8210302201,"XXXX1287",null,9636679739,"V/PO-MORAJHADI,VILL-MORAJHADI ,,305402",80000,"N","N",null,10,"None",0]
[5,"A",606,"2020-07-15","Mansha Prajapat",null,"Prakash Prajapat","Parvati","F","2014-12-02",null,null,null,null,"OBC","Hindu",null,"GOVT. SENIOR SECONDARY SCHOOL MORAJHADI (214242)",8210302201,"XXXX2805",null,9680248530,"morajhadi,srinagar,morajhadi,305402",50000,"N","N","No",11,"None",0]
[5,"A",676,"2021-06-22","Pawan Prajapat",null,"Basram Prajapat","Annu","M","2014-01-14",null,null,null,null,"OBC","Hindu",null,"GOVT. SENIOR SECONDARY SCHOOL MORAJHADI (214242)",8210302201,"XXXX2031",null,7426021076,"V/PO-MORAJHADI,VILL-MORAJHADI ,Morajhadi,305402",60000,"N","N","No",11,"None",0]
[5,"A",726,"2021-08-23","Pradeep Jat",null,"Sukhdev Jat","Samotra Devi","M","2015-05-28",null,null,null,null,"OBC",null,null,"GOVT. SENIOR SECONDARY SCHOOL MORAJHADI (214242)",8210302201,"XXXX3317",null,9571479136,"V/PO-MORAJHADI,VILL-MORAJHADI ,,305402",80000,"N","N",null,10,"None",0]
[5,"A",752,"2021-12-03","Pritam Choudhary",null,"Hariram","Sharda Choudhary","M","2016-03-23",null,null,null,null,"OBC",null,null,"GOVT. SENIOR SECONDARY SCHOOL MORAJHADI (214242)",8210302201,null,null,9799386984,null,null,"N","N",null,9,"None",0]
[5,"A",722,"2021-08-13","Radhika Choudhari",null,"Kailash Chand","Sunita","F","2016-05-20",null,null,null,null,"OBC",null,null,"GOVT. SENIOR SECONDARY SCHOOL MORAJHADI (214242)",8210302201,"XXXX7216",null,9001235868,"V/PO-MORAJHADI,VILL-MORAJHADI ,,305402",60000,"N","N",null,9,"None",0]
[5,"A",731,"2021-09-23","Raju Prajapat",null,"Omprakash Prajapat","Sushila Devi","M","2016-07-01",null,null,null,null,"OBC",null,null,"GOVT. SENIOR SECONDARY SCHOOL MORAJHADI (214242)",8210302201,"XXXX3430",null,9660060739,"V/PO-MORAJHADI,VILL-MORAJHADI ,,305402",60000,"N","N",null,9,"None",0]
[5,"A",713,"2021-08-02","Rinku Nat",null,"Sonu","Gaytri","M","2013-04-20",null,null,null,null,"SC","Hindu",null,"GOVT. SENIOR SECONDARY SCHOOL MORAJHADI (214242)",8210302201,"XXXX0215",null,9588942595,"V/PO-MORAJHADI,VILL-MORAJHADI ,Morajhadi,305402",60000,"N","N","No",12,"None",0]
[5,"A",685,"2021-07-12","Samar Choudhary",null,"Mahendra Choudhary","Amrit Devi","M","2015-08-30",null,null,null,null,"OBC","Hindu",null,"GOVT. SENIOR SECONDARY SCHOOL MORAJHADI (214242)",8210302201,"XXXX7869",null,9950193738,"mavshiya,shrinagar,mavshiya,305402",60000,"N","N","No",10,"None",1]
[5,"A",739,"2021-09-27","Sannu Jat",null,"Ranswarup","Bhagwati","F","2015-04-30",null,null,null,null,"OBC",null,null,"GOVT. SENIOR SECONDARY SCHOOL MORAJHADI (214242)",8210302201,"XXXX3484",null,9999999999,"V/PO-MORAJHADI,VILL-MORAJHADI ,,305402",80000,"N","N",null,10,"None",0]
[5,"A",746,"2021-10-22","Shivani",null,"Sukhpal Jat","Supyar Devi","F","2015-12-04",null,null,null,null,"OBC",null,null,"GOVT. SENIOR SECONDARY SCHOOL MORAJHADI (214242)",8210302201,null,null,9928563319,"V/PO-bhatiyani,masuda,,305402",80000,"N","N",null,10,"None",0]
[5,"A",750,"2021-12-23","Tannu Bansali",null,"Kalu Ram","Sonu Devi","F","2015-10-11",null,null,null,null,"OBC",null,null,"GOVT. SENIOR SECONDARY SCHOOL MORAJHADI (214242)",8210302201,null,null,8890861312,null,null,"N","N",null,10,"None",0]
[5,"A",705,"2021-07-23","Vikash",null,"Pankaj Harijan","Savita","M","2015-07-14",null,null,null,null,"SC","Hindu",null,"GOVT. SENIOR SECONDARY SCHOOL MORAJHADI (214242)",8210302201,"XXXX7307",null,7725905089,"V/PO-MORAJHADI,VILL-MORAJHADI ,Morajhadi,305402",62000,"N","N","No",10,"None",0]
[5,"A",732,"2021-09-23","vikash jat",null,"Hariram jat","Guman Jat","M","2016-04-15",null,null,null,null,"OBC",null,null,"GOVT. SENIOR SECONDARY SCHOOL MORAJHADI (214242)",8210302201,"XXXX3198",null,9784038172,"V/PO-MORAJHADI,VILL-MORAJHADI ,,305402",58000,"N","N",null,9,"None",0]
[5,"A",633,"2020-08-14","Vikram Prajapat",null,"Hardayal","Sona","M","2015-01-01",null,null,null,null,"OBC","Hindu",null,"GOVT. SENIOR SECONDARY SCHOOL MORAJHADI (214242)",8210302201,"XXXX8075",null,9829116673,"morajhadi,srinagar,morajhadi,305402",50000,"N","N","No",10,"None",0]
[6,"A",658,"2021-01-25","Anita",null,"Ramsingh","Neela Devi","F","2015-06-23",null,null,null,null,"OBC",null,null,"GOVT. SENIOR SECONDARY SCHOOL MORAJHADI (214242)",8210302201,"XXXX9026",null,9799550125,"V/PO-MORAJHADI,VILL-MORAJHADI ,,305402",80000,"N","N",null,10,"None",0]
[6,"A",654,"2021-01-25","Anjali",null,"Hanuman","Chaina","F","2015-01-16",null,null,null,null,"OBC",null,null,"GOVT. SENIOR SECONDARY SCHOOL MORAJHADI (214242)",8210302201,"XXXX7596",null,6378602329,"V/PO-MORAJHADI,VILL-MORAJHADI ,,305402",50000,"N","N",null,10,"None",0]
[6,"A",604,"2020-07-13","Anjali",null,"Shankar Choudhary","Sharda Devi","F","2015-06-05",null,null,null,null,"OBC","Hindu",null,"GOVT. SENIOR SECONDARY SCHOOL MORAJHADI (214242)",8210302201,"XXXX5587",null,9999999999,"morajhadi,srinagar,morajhadi,305402",50000,"N","N","No",10,"None",0]
[6,"A",605,"2020-07-15","Annu",null,"Kalu Ram","Sonu","F","2014-01-27",null,null,null,null,"SC","Hindu",null,"GOVT. SENIOR SECONDARY SCHOOL MORAJHADI (214242)",8210302201,"XXXX4606",null,8890861312,"morajhadi,srinagar,morajhadi,305402",50000,"N","N","No",11,"None",0]
[6,"A",771,"2022-07-13","Anuska Choudhary",null,"Sanwar Lal Choudhary","Asha","F","2015-04-02",null,null,null,null,"OBC",null,null,"GOVT. SENIOR SECONDARY SCHOOL MORAJHADI (214242)",8210302201,null,null,9875117480,null,null,"N","Y",null,10,null,0]
[6,"A",936,"2025-07-14","Arjun Bheel",null,"Gheesa Bheel","Sampat Devi","M","2013-11-10",null,null,null,null,"ST","Hindu",null,"GOVT. SENIOR SECONDARY SCHOOL MORAJHADI (214242)",8210302201,null,null,7340690721,"VILLAGE- KERIYA KHURD POST- MORAJHARI VIA-RAMSAR TEHSIL- NASIRABAD DISTRICT-AJMER,SRINAGAR ,KERIYA KHURD ,305402",0,"N","N","No",12,"None",0]
[6,"A",632,"2020-08-14","Asha Prajapat",null,"Pankaj Kumar","Kanchan","F","2014-07-06",null,null,null,null,"OBC","Hindu",null,"GOVT. SENIOR SECONDARY SCHOOL MORAJHADI (214242)",8210302201,null,null,8290856599,"morajhadi,srinagar,morajhadi,305402",50000,"N","N","No",11,"None",0]
[6,"A",942,"2025-07-16","Ganesh Choudhary",null,"Ramraj Choudhary","Bhuri Devi","M","2013-06-07",null,null,null,null,"OBC","Hindu",null,"GOVT. SENIOR SECONDARY SCHOOL MORAJHADI (214242)",8210302201,null,null,7023699250,"VILLAGE- KERIYA KHURD POST- MORAJHARI VIA-RAMSAR TEHSIL- NASIRABAD DISTRICT-AJMER,SRINAGAR,KERIYAKHURD,305402",0,"N","N","No",12,"None",0]
[6,"A",550,"2019-07-04","GORA PRAJAPAT",null,"HARADAYAL PRAJAPAT","SONA DEVI","F","2013-06-03",null,null,null,null,"OBC","Hindu",null,"GOVT. SENIOR SECONDARY SCHOOL MORAJHADI (214242)",8210302201,"XXXX2149","yioomio",9900000000,"121, Gano ki guvadi,Shrinagar,Morajhadi,305402",50000,"N","N","No",12,"None",0]
[6,"A",634,"2020-08-14","Hemraj",null,"Ramnarayan","Sita","M","2014-09-21",null,null,null,null,"OBC","Hindu",null,"GOVT. SENIOR SECONDARY SCHOOL MORAJHADI (214242)",8210302201,"XXXX6786",null,8890617781,"morajhadi,srinagar,morajhadi,305402",50000,"N","N","No",11,"None",0]
[6,"A",639,"2020-08-18","Kanta Prajapat",null,"Dhulaya Prajapat","Manbhar Devi","F","2014-12-07",null,null,null,null,"OBC","Hindu",null,"GOVT. SENIOR SECONDARY SCHOOL MORAJHADI (214242)",8210302201,"XXXX9671",null,9799271567,"morajhadi,srinagar,morajhadi,305402",60000,"N","N","No",11,"None",0]
[6,"A",666,"2021-02-27","KARISHMA CHOUDHARY",null,"Gopiram Choudhary","Seema Devi","F","2013-01-01",null,null,null,null,"OBC",null,null,"GOVT. SENIOR SECONDARY SCHOOL MORAJHADI (214242)",8210302201,"XXXX3894",null,7737356810,"VILL-KHERIYA KHURD,AJMER,,305402",50000,"N","N",null,12,"None",0]
[6,"A",630,"2020-08-13","Krishna Prajapat",null,"Ramlal","Savitri","F","2014-10-12",null,null,null,null,"OBC","Hindu",null,"GOVT. SENIOR SECONDARY SCHOOL MORAJHADI (214242)",8210302201,"XXXX6046",null,9602852171,"morajhadi,srinagar,morajhadi,305402",50000,"N","N","No",11,"None",0]
[6,"A",830,"2023-07-11","Monika",null,"Ramprasad Jat","Radha Devi","F","2013-01-01",null,null,null,null,"OBC",null,null,"GOVT. SENIOR SECONDARY SCHOOL MORAJHADI (214242)",8210302201,"XXXX9793",null,7226031496,null,null,"N","Y",null,12,null,0]
[6,"A",675,"2021-06-22","Monu Choudhary",null,"Kalu Ram","Santosh","M","2014-06-04",null,null,null,null,"OBC","Hindu",null,"GOVT. SENIOR SECONDARY SCHOOL MORAJHADI (214242)",8210302201,"XXXX3579",null,9929463419,"VILL-RAGHUNATHPURA KHEDA,AJMER,RAGHUNATHPURA KHEDA,305402",54000,"N","N","No",11,"None",0]
[6,"A",653,"2021-01-25","Nandram Jat",null,"Satyanarayan Jat","Seeta Devi","M","2014-02-08",null,null,null,null,"OBC",null,null,"GOVT. SENIOR SECONDARY SCHOOL MORAJHADI (214242)",8210302201,"XXXX6004",null,8003470484,"V/PO-MORAJHADI,VILL-MORAJHADI ,,305402",50000,"N","N",null,11,"None",0]
[6,"A",895,"2024-07-15","Nirmal Jat",null,"Hanuman Jat","Kamalesh","M","2014-03-21",null,null,null,null,"OBC",null,null,"GOVT. SENIOR SECONDARY SCHOOL MORAJHADI (214242)",8210302201,null,null,9571132018,null,null,"N","Y",null,11,null,0]
[6,"A",608,"2020-07-20","Pooja Prajapat",null,"Laxman Prajapat","Kanchan Devi","F","2013-12-20",null,null,null,null,"OBC","Hindu",null,"GOVT. SENIOR SECONDARY SCHOOL MORAJHADI (214242)",8210302201,"XXXX9602",null,9336103206,"morajhadi,sringar,morajhadi,305402",50000,"N","N","No",12,"None",0]
[6,"A",740,"2021-09-27","Pradeep Jat",null,"Govind Jat","Jivani Devi","M","2014-06-08",null,null,null,null,"OBC",null,null,"GOVT. SENIOR SECONDARY SCHOOL MORAJHADI (214242)",8210302201,"XXXX7095",null,7727904312,"V/PO-MORAJHADI,VILL-MORAJHADI ,,305402",50000,"N","N",null,11,"None",0]
[6,"A",629,"2020-08-13","Premchand Prajapat",null,"Kailash","Kanchan Devi","M","2015-07-17",null,null,null,null,"OBC",null,null,"GOVT. SENIOR SECONDARY SCHOOL MORAJHADI (214242)",8210302201,"XXXX1929",null,9001697969,"V/PO-MORAJHADI,VILL-MORAJHADI ,,305402",50000,"N","N",null,10,"None",0]
[6,"A",846,"2023-07-18","Priyanka Prajapat",null,"Pankaj Kumar","Kanchan","F","2014-05-07",null,null,null,null,"OBC",null,null,"GOVT. SENIOR SECONDARY SCHOOL MORAJHADI (214242)",8210302201,"XXXX9326",null,9667456734,"Madhopura,Sarwar,Madhopura,305601",0,"N","N",null,11,"None",0]
[6,"A",817,"2023-07-11","Radhika",null,"Arjun","Pooja","F","2012-08-28",null,null,null,null,"SC",null,null,"GOVT. SENIOR SECONDARY SCHOOL MORAJHADI (214242)",8210302201,"XXXX1558",null,8769047422,null,null,"N","Y",null,13,null,0]
[6,"A",610,"2020-07-23","Rahul Bheel",null,"Chhotu Bheel","Sampati Devi","M","2015-01-01",null,null,null,null,"ST","Hindu",null,"GOVT. SENIOR SECONDARY SCHOOL MORAJHADI (214242)",8210302201,"XXXX6192",null,7742460176,"V/PO-MORAJHADI,VILL-MORAJHADI ,,305402",0,"N","N","No",10,"None",0]
[6,"A",628,"2020-08-13","Rahul Prajapat",null,"Kailash","Kanchan Devi","M","2013-07-04",null,null,null,null,"OBC","Hindu",null,"GOVT. SENIOR SECONDARY SCHOOL MORAJHADI (214242)",8210302201,"XXXX2297",null,9001697969,"morajhadi,srinagar,morajhadi,305402",80000,"N","N","No",12,"None",0]
[6,"A",635,"2020-08-14","Ranjeet Jat",null,"Om Prakash","Surgyan","M","2015-08-25",null,null,null,null,"OBC","Hindu",null,"GOVT. SENIOR SECONDARY SCHOOL MORAJHADI (214242)",8210302201,"XXXX7750",null,9784173477,"morajhadi,srinagar,morajhadi,305402",50000,"N","N","No",10,"None",0]
[6,"A",641,"2020-08-20","Rohit Prajapat",null,"Ram Singh Prajapat","Mamta Devi","M","2014-11-05",null,null,null,null,"OBC","Hindu",null,"GOVT. SENIOR SECONDARY SCHOOL MORAJHADI (214242)",8210302201,"XXXX6318",null,9784782294,"morajhadi,srinagar,morajhadi,305402",60000,"N","N","No",11,"None",0]
[6,"A",607,"2020-07-17","Sachin Bansali",null,"Ramraj Bansali","Manju Devi","M","2013-10-26",null,null,null,null,"SC","Hindu",null,"GOVT. SENIOR SECONDARY SCHOOL MORAJHADI (214242)",8210302201,"XXXX5094",null,7023127509,"morajhadi,SRINAGR,morajhadi,305402",50000,"N","N","No",12,"None",0]
[6,"A",621,"2020-08-10","Sagar",null,"Arjun","Pooja","M","2014-01-21",null,null,null,null,"SC","Hindu",null,"GOVT. SENIOR SECONDARY SCHOOL MORAJHADI (214242)",8210302201,"XXXX0870",null,8306502473,"morajhadi,srinagar,morajhadi,305402",60000,"N","N","No",11,"None",0]
[6,"A",736,"2021-09-27","Sarita Prajapat",null,"Mukesh","Maina","F","2014-07-02",null,null,null,null,"OBC",null,null,"GOVT. SENIOR SECONDARY SCHOOL MORAJHADI (214242)",8210302201,"XXXX1852",null,6378061759,"V/PO-MORAJHADI,VILL-MORAJHADI ,,305402",80000,"N","N",null,11,"None",0]
[6,"A",613,"2020-07-31","Sunil Meghwanshi",null,"Seetaram Meghwanshi","Maya Devi","M","2013-06-29",null,null,null,null,"SC","Hindu",null,"GOVT. SENIOR SECONDARY SCHOOL MORAJHADI (214242)",8210302201,"XXXX6702",null,9950026559,"morajhadi,srinagar,morajhadi,305402",50000,"N","N","No",12,"None",0]
[6,"A",667,"2021-02-27","Surendra Prajapat",null,"Ramlal Prajapat","Rekha","M","2015-09-14",null,null,null,null,"OBC",null,null,"GOVT. SENIOR SECONDARY SCHOOL MORAJHADI (214242)",8210302201,"XXXX8278",null,9784721968,"V/PO-MORAJHADI,VILL-MORAJHADI ,,305402",80000,"N","N",null,10,"None",0]
[6,"A",612,"2020-07-27","Vikash Prajapat",null,"Prabhu Lal","Ramsuvar","M","2015-07-09",null,null,null,null,"OBC","Hindu",null,"GOVT. SENIOR SECONDARY SCHOOL MORAJHADI (214242)",8210302201,"XXXX0609",null,9461508457,"morajhadi,srinagar,morajhadi,305402",50000,"N","N","No",10,"None",0]
[7,"A",546,"2019-07-03","ADESH CHOUDHARY",null,"SARDAR CHOUDHARY","SURGYAN DEVI","M","2013-04-06",null,null,null,null,"OBC","Hindu",null,"GOVT. SENIOR SECONDARY SCHOOL MORAJHADI (214242)",8210302201,"XXXX4784","vnpvnjv",6376959531,"Jato ka mohalla,Shrinagar,Morajhadi,305402",50000,"N","N","No",12,"None",3]
[7,"A",660,"2021-01-25","Anjali",null,"Ramsingh","Nila Devi","F","2012-09-26",null,null,null,null,"OBC","Hindu",null,"GOVT. SENIOR SECONDARY SCHOOL MORAJHADI (214242)",8210302201,"XXXX2925",null,9799550125,"V/PO-MORAJHADI,VILL-MORAJHADI ,,305402",80000,"N","N","No",13,"None",3]
[7,"A",659,"2021-01-25","Ankar Jat",null,"Dhanraj Jat","Kopan Devi","F","2013-02-12",null,null,null,null,"OBC",null,null,"GOVT. SENIOR SECONDARY SCHOOL MORAJHADI (214242)",8210302201,"XXXX2729",null,9928265756,"VILL-RAGHUNATHPURA KHEDA,AJMER,,305402",80000,"N","N",null,12,"None",3]
[7,"A",556,"2019-07-06","ANKIT JAT",null,"JAI SINGH JAT","NARBDA DEVI","M","2013-06-05",null,null,null,null,"OBC","Hindu",null,"GOVT. SENIOR SECONDARY SCHOOL MORAJHADI (214242)",8210302201,"XXXX9754","voocjwv",8290807651,"Morajhadi,Shrinagar,Morajhadi,305402",66000,"N","N","No",12,"None",0]
[7,"A",458,"2018-06-23","DILIP CHOUDHARY",null,"PRADHAN CHOUDHARY","PARVATI DEVI","M","2013-02-12",null,null,null,null,"OBC","Hindu",null,"GOVT. SENIOR SECONDARY SCHOOL MORAJHADI (214242)",8210302201,"XXXX7043",null,9460361075,"VPO MORAJHADI,SRINAGAR,,305402",60000,"N","N","No",12,"None",0]
[7,"A",603,"2019-12-05","Dinesh Prajapat",null,"Kailash Prajapat","Parwati","M","2014-03-13",null,null,null,null,"OBC",null,null,"GOVT. SENIOR SECONDARY SCHOOL MORAJHADI (214242)",8210302201,"XXXX3547",null,9636679743,"V/PO-MORAJHADI,VILL-MORAJHADI ,,305402",60000,"N","N",null,11,"None",0]
[7,"A",908,"2024-07-25","Gyanwanti Devi Bheel",null,"Nathu Bheel","Surgyan","F","2014-01-01",null,null,null,null,"ST",null,null,"GOVT. SENIOR SECONDARY SCHOOL MORAJHADI (214242)",8210302201,null,null,9799341664,"Village Dhanma post Fathegarh teh sarwar disttAjmer,Sarwar,Dhanma,305412",0,"N","N",null,11,"None",4]
[7,"A",938,"2025-07-15","Khushi Prajapat",null,"Budhraj Prajapat","Sumitra Devi","F","2012-07-23",null,null,null,null,"OBC",null,null,"GOVT. SENIOR SECONDARY SCHOOL MORAJHADI (214242)",8210302201,null,null,9929339429,null,null,"N","Y",null,13,null,1]
[7,"A",560,"2019-07-08","KHUSHIRAM PRAJAPAT",null,"RAMLAL PRAJAPAT","SAVITRI DEVI","M","2012-09-07",null,null,null,null,"OBC","Hindu",null,"GOVT. SENIOR SECONDARY SCHOOL MORAJHADI (214242)",8210302201,"XXXX8807","yiiuaub",9999999999,"121, Balai Mohalla,Shrinagar,Morajhadi,305402",48000,"N","N","No",13,"None",0]
[7,"A",891,"2024-07-13","Kiran Devi Bheel",null,"Shaitan Bheel","Mathra Devi","F","2013-12-02",null,null,null,null,"ST","Hindu",null,"GOVT. SENIOR SECONDARY SCHOOL MORAJHADI (214242)",8210302201,"XXXX3421",null,8302060752,"Village-keriya khurd, post-morajhari, via-ramsar, tehsil-nasirabad, district-ajmer ,srinagar,keriyakhurd,305402",0,"N","N","No",12,"None",4]
[7,"A",716,"2021-08-05","KOMAL CHOUDHARY",null,"DHANRAJ CHOUDHARY","MATHRA DEVI","F","2012-12-12",null,null,null,null,"OBC",null,null,"GOVT. SENIOR SECONDARY SCHOOL MORAJHADI (214242)",8210302201,"XXXX9829",null,9784100510,"V/PO-MORAJHADI,VILL-MORAJHADI ,,305402",80000,"N","N",null,13,"None",0]
[7,"A",593,"2019-08-02","Komal Jat",null,"Hemraj Jat","Ladi Devi","F","2013-10-08",null,null,null,null,"OBC","Hindu",null,"GOVT. SENIOR SECONDARY SCHOOL MORAJHADI (214242)",8210302201,"XXXX4062","yiakfos",9999999999,"Keriya Khurd,Shrinagar,Keriya Khurd,305402",50000,"N","N","No",12,"None",3]
[7,"A",530,"2018-07-31","LOKESH PRAJAPAT",null,"PARASA RAM PRAJAPAT","GANESHI DEVI","M","2012-11-05",null,null,null,null,"OBC","Hindu",null,"GOVT. SENIOR SECONDARY SCHOOL MORAJHADI (214242)",8210302201,"XXXX2433","VNHKZOV",9999999999,"VPO MORAJHADI,SRINAGAR,,305402",30000,"N","N","No",13,"None",0]
[7,"A",454,"2018-06-20","MAHENDRA CHOUDHARY",null,"RAMDAYAL CHOUDHARY","SAMPAT DEVI","M","2012-11-29",null,null,null,null,"OBC","Hindu",null,"GOVT. SENIOR SECONDARY SCHOOL MORAJHADI (214242)",8210302201,"XXXX2525",null,9460361075,"VPO MORAJHADI,SRINAGAR,,305402",65000,"N","N","No",13,"None",0]
[7,"A",544,"2019-07-02","MAHIPAL CHOUDHARY",null,"KANARAM CHOUDHARY","INDRA DEVI","M","2012-12-24",null,null,null,null,"OBC","Hindu",null,"GOVT. SENIOR SECONDARY SCHOOL MORAJHADI (214242)",8210302201,"XXXX2405","bagusis",7877098311,"raghunathpura,Shrinagar,Morajhadi,305402",50000,"N","N","No",13,"None",3]
[7,"A",888,"2024-07-10","Mamta Choudhary",null,"Kaluram Choudhary","Ganga Devi","F","2014-03-16",null,null,null,null,"OBC",null,null,"GOVT. SENIOR SECONDARY SCHOOL MORAJHADI (214242)",8210302201,"XXXX0277",null,9680248718,"Village-keriya khurd, post-morajhari, via-ramsar, tehsil-nasirabad, district-ajmer ,srinagar,keriyakhurds,305402",0,"N","N",null,11,"None",3]
[7,"A",592,"2019-08-02","Mangal Jat",null,"Lalaram Jat","mathara devi","M","2013-11-26",null,null,null,null,"OBC","Hindu",null,"GOVT. SENIOR SECONDARY SCHOOL MORAJHADI (214242)",8210302201,"XXXX1947","wxwbjzh",9999999999,"Morajhadi,Shrinagar,Morajhadi,305402",40000,"N","N","No",12,"None",0]
[7,"A",598,"2019-08-22","Manisha",null,"Shankar Lal","Mamata Devi","F","2014-01-01",null,null,null,null,"OBC","Hindu",null,"GOVT. SENIOR SECONDARY SCHOOL MORAJHADI (214242)",8210302201,"XXXX4852",null,9001213489,"V/PO-MORAJHADI,VILL-MORAJHADI ,,305402",60000,"N","N","No",11,"None",3]
[7,"A",889,"2024-07-13","Manisha Devi Meghwanshi",null,"Rajendra Meghwanshi","Manju Devi","F","2013-11-18",null,null,null,null,"SC",null,null,"GOVT. SENIOR SECONDARY SCHOOL MORAJHADI (214242)",8210302201,"XXXX8467",null,9680247925,"Village-keriya khurd, post-morajhari, via-ramsar, tehsil-nasirabad, district-ajmer ,srinagar,keriyakhurd,305402",0,"N","N",null,12,"None",1]
[7,"A",547,"2019-07-03","MANSA KUMHAR",null,"SANWARA KUMHAR","SAMOTRA DEVI","F","2013-08-22",null,null,null,null,"OBC","Hindu",null,"GOVT. SENIOR SECONDARY SCHOOL MORAJHADI (214242)",8210302201,"XXXX2805",null,9999999999,"Morajhadi,Shrinagar,Morajhadi,305402",50000,"N","N","No",12,"None",0]
[7,"A",551,"2019-07-04","MANSA KUMHAR",null,"MAHAVEER KUMHAR","FOOLA DEVI","F","2013-07-06",null,null,null,null,"OBC","Hindu",null,"GOVT. SENIOR SECONDARY SCHOOL MORAJHADI (214242)",8210302201,"XXXX6763","vpgvgwm",9900000000,"Morajhadi,Shrinagar,Morajhadi,305402",36000,"N","N","No",12,"None",0]
[7,"A",949,"2025-07-21","Mehram Jat",null,"Raymal Jat","Mathura Devi","M","2013-10-06",null,null,null,null,"OBC",null,null,"GOVT. SENIOR SECONDARY SCHOOL MORAJHADI (214242)",8210302201,null,null,9784061074,null,null,"N","Y",null,12,null,0]
[7,"A",900,"2024-07-18","Mohammad Ikbal",null,"Chhotu","MEHRUN BANO","M","2013-05-16",null,null,null,null,"OBC","Muslim",null,"GOVT. SENIOR SECONDARY SCHOOL MORAJHADI (214242)",8210302201,"XXXX3975",null,7725960262,"Sapronda Road,Shrinagar,Morajhri,305402",0,"N","N","Yes",12,"None"]
[7,"A",572,"2019-07-15","MOHIT JAT",null,"PRADHAN JAT","MAMTA","M","2014-04-14",null,null,null,null,"OBC","Hindu",null,"GOVT. SENIOR SECONDARY SCHOOL MORAJHADI (214242)",8210302201,"XXXX9951","vgxgvbv",9950951302,"Morajhadi,Shrinagar,Morajhadi,305402",70000,"N","N","No",11,"None",0]
[7,"A",467,"2018-07-02","MOHIT MEGHWANSHI",null,"HANUMAN MEGHWANSHI","MAMTA DEVI","M","2012-10-28",null,null,null,null,"SC","Hindu",null,"GOVT. SENIOR SECONDARY SCHOOL MORAJHADI (214242)",8210302201,"XXXX9133","VPPGRGV",7297947571,"VPO MORAJHADI,SRINAGAR,,305402",50000,"N","N","No",13,"None",0]
[7,"A",541,"2019-05-06","MONIKA CHOUDHARY",null,"MANGILAL CHOUDHARY","SHOBHAG DEVI","F","2013-02-06",null,null,null,null,"OBC","Hindu",null,"GOVT. SENIOR SECONDARY SCHOOL MORAJHADI (214242)",8210302201,"XXXX7526","ysgukmw",9636127232,"Morajhadi,Shrinagar,Morajhadi,305402",50000,"N","N","No",12,"None",1]
[7,"A",573,"2019-07-16","NARENDRA JAT",null,"KAILASH JAT","SAMPAT DEVI","M","2013-05-01",null,null,null,null,"OBC","Hindu",null,"GOVT. SENIOR SECONDARY SCHOOL MORAJHADI (214242)",8210302201,"XXXX4077","yksowoo",8003880308,"Morajhadi,Shrinagar,Morajhadi,305402",60000,"N","N","No",12,"None",0]
[7,"A",919,"2024-08-20","Neela Devi Bheel",null,"Raju Bheel","Sunita devi","F","2013-09-23",null,null,null,null,"ST",null,null,"GOVT. SENIOR SECONDARY SCHOOL MORAJHADI (214242)",8210302201,null,null,9257451750,"Village-keriya khurd, post-morajhari, via-ramsar, tehsil-nasirabad, district-ajmer ,srinagar,keriyakhurd,305402",0,"N","N",null,12,"None",3]
[7,"A",558,"2019-07-06","OMPRAKASH KUMHAR",null,"PARBHU KUMHAR","SITA DEVI","M","2013-04-11",null,null,null,null,"SBC","Hindu",null,"GOVT. SENIOR SECONDARY SCHOOL MORAJHADI (214242)",8210302201,"XXXX6662","yigmffw",9571593238,"Morajhadi,Sharinagar,Morajhadi,305402",60000,"N","N","No",12,"None",0]
[7,"A",669,"2021-02-27","Pooja Jat",null,"Gopiram","Seema","F","2013-01-01",null,null,null,null,"OBC",null,null,"GOVT. SENIOR SECONDARY SCHOOL MORAJHADI (214242)",8210302201,"XXXX6155",null,9001658810,"VILL-KHERIYA KHURD,AJMER,,305402",80000,"N","N",null,12,"None",4]
[7,"A",540,"2019-05-06","PRADEEP JAT",null,"RAJESH JAT","SITA DEVI","M","2013-07-31",null,null,null,null,"OBC","Hindu",null,"GOVT. SENIOR SECONDARY SCHOOL MORAJHADI (214242)",8210302201,"XXXX4836","YIGBUDG",9636127232,"MORAJHADI,SHRINAGAR,MORAJHADI,305402",50000,"N","N","No",12,"None",0]
[7,"A",804,"2022-09-03","Priya",null,"Dharmichand","Kani Devi","F","2013-11-26",null,null,null,null,"OBC",null,null,"GOVT. SENIOR SECONDARY SCHOOL MORAJHADI (214242)",8210302201,"XXXX3651",null,9116550681,null,null,"N","Y",null,12,null,0]
[7,"A",930,"2025-07-12","Priya",null,"Prakash Bhambhi","Reena Devi","F","2014-01-11",null,null,null,null,"SC",null,null,"GOVT. SENIOR SECONDARY SCHOOL MORAJHADI (214242)",8210302201,null,null,8890188376,null,null,"N","Y",null,11,null,1]
[7,"A",711,"2021-07-31","Priyanka Jat",null,"Omprakash","Surgyan Devi","F","2012-06-01",null,null,null,null,"OBC","Hindu",null,"GOVT. SENIOR SECONDARY SCHOOL MORAJHADI (214242)",8210302201,"XXXX8768",null,9784173477,"V/PO-MORAJHADI,VILL-MORAJHADI ,Morajhadi,305402",80000,"N","N","No",13,"None",0]
[7,"A",646,"2020-10-16","Radhika",null,"Mahaveer Bhil","Mandraj","F","2012-01-01",null,null,null,null,"ST",null,null,"GOVT. SENIOR SECONDARY SCHOOL MORAJHADI (214242)",8210302201,"XXXX6554",null,9784253973,"V/PO-MORAJHADI,VILL-MORAJHADI ,,305402",50000,"N","N",null,13,"None",0]
[7,"A",460,"2018-06-25","RADHIKA JAT",null,"MISHRI LAL JAT","KALI DEVI","F","2012-10-16",null,null,null,null,"OBC","Hindu",null,"GOVT. SENIOR SECONDARY SCHOOL MORAJHADI (214242)",8210302201,"XXXX0958",null,9460361075,"VPO MORAJHADI,SRINAGAR,,305402",60000,"N","N","No",13,"None",0]
[7,"A",886,"2024-07-06","Rahul Choudhary",null,"Ramraj Choudhary","Bhuri Devi","M","2012-01-01",null,null,null,null,"OBC",null,null,"GOVT. SENIOR SECONDARY SCHOOL MORAJHADI (214242)",8210302201,"XXXX2236",null,7023699625,"Village-keriya khurd, post-morajhari, via-ramsar, tehsil-nasirabad, district-ajmer ,SRINAGAR,KERIYAKHURD,305402",0,"N","N",null,13,"None",4]
[7,"A",873,"2018-07-09","Ranjeet",null,"Mangal Chand Jat","Kanta Devi","M","2013-04-17",null,null,null,null,"OBC","Hindu",null,"GOVT. SENIOR SECONDARY SCHOOL MORAJHADI (214242)",8210302201,"XXXX4517",null,9888888888,null,null,"N","N","No",12,"None",3]
[7,"A",701,"2021-07-20","RITIKA CHOUDHARY",null,"Hansraj Choudhary","Manraj","F","2012-04-23",null,null,null,null,"OBC","Hindu",null,"GOVT. SENIOR SECONDARY SCHOOL MORAJHADI (214242)",8210302201,null,null,6367769223,"keriya khurd,shrinagar,keriya khurd,305402",80000,"N","N","No",13,"None",4]
[7,"A",664,"2021-02-26","Ritika Gurjar",null,"Mangal Chand Gurjar","Nepal Devi","F","2013-11-23",null,null,null,null,"SBC",null,null,"GOVT. SENIOR SECONDARY SCHOOL MORAJHADI (214242)",8210302201,"XXXX8662",null,6375890886,"VILL-RAGHUNATHPURA KHEDA,AJMER,,305402",60000,"N","N",null,12,"None",3]
[7,"A",903,"2024-07-19","Salma Bano",null,"Chhotu","MEHRUN BANO","F","2012-04-27",null,null,null,null,"OBC","Muslim",null,"GOVT. SENIOR SECONDARY SCHOOL MORAJHADI (214242)",8210302201,"XXXX6436",null,7725960267,"Saprona Road,Shrinagar,Morajhri,305402",0,"N","N","Yes",13,"None"]
[7,"A",898,"2024-07-16","Sannu Bheel",null,"Pappu Bheel","Maina Devi","M","2014-01-01",null,null,null,null,"ST",null,null,"GOVT. SENIOR SECONDARY SCHOOL MORAJHADI (214242)",8210302201,"XXXX6720",null,8233694902,"Village-keriya khurd, post-morajhari, via-ramsar, tehsil-nasirabad, district-ajmer ,srinagar,keriyakhurd,305402",0,"N","N",null,11,"None",4]
[7,"A",456,"2018-06-21","SEEMA PRAJAPAT",null,"GANESH PRAJAPAT","ASHA DEVI","F","2012-06-26",null,null,null,null,"OBC","Hindu",null,"GOVT. SENIOR SECONDARY SCHOOL MORAJHADI (214242)",8210302201,"XXXX3718","YIAYYKW",9460361075,"VPO MORAJHADI,SRINAGAR,,305402",50000,"N","N","No",13,"None",0]
[7,"A",704,"2021-07-22","Sonika Jat",null,"Prabhu Jat","Surma Devi","F","2013-02-22",null,null,null,null,"OBC","Hindu",null,"GOVT. SENIOR SECONDARY SCHOOL MORAJHADI (214242)",8210302201,"XXXX3733",null,7357662265,"keriya khurd,shrinagar,keriya khurd,305402",70000,"N","N","No",12,"None",3]
[7,"A",887,"2024-07-06","Sunil Choudhary",null,"Parmeshwar Choudhary","Geeta Devi","M","2012-10-13",null,null,null,null,"OBC",null,null,"GOVT. SENIOR SECONDARY SCHOOL MORAJHADI (214242)",8210302201,"XXXX3968",null,9358175355,"Village-keriya khurd, post-morajhari, via-ramsar, tehsil-nasirabad, district-ajmer ,srinagar,keriyakhurd,305402",0,"N","N",null,13,"None",3]
[7,"A",459,"2018-06-25","SUNIL LUHAR",null,"RAMKARAN LUHAR","INDRA DEVI","M","2011-07-03",null,null,null,null,"SBC","Hindu",null,"GOVT. SENIOR SECONDARY SCHOOL MORAJHADI (214242)",8210302201,"XXXX1817","YUEWBWK",9460361075,"VPO MORAJHADI,SRINAGAR,,305402",45000,"N","N","No",14,"NCC",3]
[7,"A",465,"2018-06-25","SUNITA BANSALI",null,"RAMRAJ BANSALI","MANJU DEVI","F","2012-05-18",null,null,null,null,"SC","Hindu",null,"GOVT. SENIOR SECONDARY SCHOOL MORAJHADI (214242)",8210302201,"XXXX1389",null,9460361075,"VPO MORAJHADI,SRINAGAR,,305402",40000,"N","N","No",13,"None",0]
[7,"A",464,"2018-06-25","SUNITA JAT",null,"RAMNIWAS JAT","SEEMA DEVI","F","2012-07-13",null,null,null,null,"OBC","Hindu",null,"GOVT. SENIOR SECONDARY SCHOOL MORAJHADI (214242)",8210302201,"XXXX3440",null,9460361075,"VPO MORAJHADI,SRINAGAR,,305402",60000,"N","N","No",13,"None",0]
[7,"A",534,"2018-07-31","SUNITA PRAJAPAT",null,"PRAKASH PRAJAPAT","PARWATI DEVI","F","2013-01-24",null,null,null,null,"OBC","Hindu",null,"GOVT. SENIOR SECONDARY SCHOOL MORAJHADI (214242)",8210302201,"XXXX4995",null,9116833033,"VPO MORAJHADI,SRINAGAR,,305402",38000,"N","N","No",12,"None",0]
[7,"A",642,"2020-08-21","Suraj Prajapat",null,"Ram Singh Prajapat","Mamta Devi","M","2012-08-28",null,null,null,null,"OBC","Hindu",null,"GOVT. SENIOR SECONDARY SCHOOL MORAJHADI (214242)",8210302201,"XXXX5505",null,9784782294,"morajhadi,srinagar,morajhadi,305402",60000,"N","N","No",13,"None",0]
[7,"A",463,"2018-06-25","TEJU PRAJAPAT",null,"DHOOLA RAM PRAJAPAT","MANBHAR DEVI","M","2012-09-05",null,null,null,null,"OBC","Hindu",null,"GOVT. SENIOR SECONDARY SCHOOL MORAJHADI (214242)",8210302201,"XXXX6284","YGDGOCG",9799271567,"VPO MORAJHADI,SRINAGAR,,305402",50000,"N","N","No",13,"None",0]
[7,"A",627,"2020-08-13","Vikas Choudhary",null,"Gopal","Mandraj","M","2014-01-13",null,null,null,null,"OBC",null,null,"GOVT. SENIOR SECONDARY SCHOOL MORAJHADI (214242)",8210302201,null,null,9680213323,"V/PO-MORAJHADI,VILL-MORAJHADI ,,305402",50000,"N","N",null,11,"None",0]
[7,"A",545,"2019-07-02","VISHNU CHOUDHARY",null,"HATHI RAM","GUMAN DEVI","M","2014-01-16",null,null,null,null,"OBC","Hindu",null,"GOVT. SENIOR SECONDARY SCHOOL MORAJHADI (214242)",8210302201,"XXXX9856","vkgcwwr",9829137061,"Morajhadi,Shrinagar,Morajhadi,305402",50000,"N","N","No",11,"None",0]
[8,"A",502,"2018-07-11","AASHU CHOUDHARY",null,"HARIRAM CHOUDHARY","RAMSWARI DEVI","F","2013-02-22",null,null,null,null,"OBC","Hindu",null,"GOVT. SENIOR SECONDARY SCHOOL MORAJHADI (214242)",8210302201,"XXXX1574","YIWSWQO",9001682700,"VPO MORAJHADI,SRINAGAR,,305402",65000,"N","N","No",12,"None",3]
[8,"A",818,"2023-07-11","Abhishek Choudhary",null,"Bheru Lal Choudhary","Surgyan Devi","M","2013-08-07",null,null,null,null,"OBC",null,null,"GOVT. SENIOR SECONDARY SCHOOL MORAJHADI (214242)",8210302201,"XXXX8858",null,9829399003,"v.keriya khurd po.morajhadi via ramsar teh.nasirabad,srinagar,keriya khurd,305402",0,"N","N",null,12,"None",3]
[8,"A",821,"2023-07-11","Anjali Devi Bheel",null,"Bhannu Bheel","Jashoda Devi Bheel","F","2011-07-01",null,null,null,null,"ST","Hindu",null,"GOVT. SENIOR SECONDARY SCHOOL MORAJHADI (214242)",8210302201,null,null,8000921820,"keriya khurd,shri nagar,keriya khurd,305402",0,"N","N","No",14,"None",4]
[8,"A",537,"2018-07-31","ANJU JAT",null,"HATHI RAM","SAMBHU DEVI","F","2012-09-18",null,null,null,null,"OBC","Hindu",null,"GOVT. SENIOR SECONDARY SCHOOL MORAJHADI (214242)",8210302201,"XXXX9285","VGZZVWT",9999999999,"VPO MORAJHADI,SRINAGAR,,305402",50000,"N","N","No",13,"None",0]
[8,"A",745,"2021-10-22","ASHAD ALI",null,"SHAHBUDDIN KURESHI","MADEENA BANO","M","2013-02-23",null,null,null,null,"OBC",null,null,"GOVT. SENIOR SECONDARY SCHOOL MORAJHADI (214242)",8210302201,"XXXX7023",null,9928674461,"V/PO-MORAJHADI,VILL-MORAJHADI ,,305402",80000,"N","N",null,12,"None",0]
[8,"A",601,"2019-08-22","ASHARAM PRAJAPAT",null,"RAMSUKH PRAJAPAT","NORATI DEVI","M","2012-08-16",null,null,null,null,"OBC",null,null,"GOVT. SENIOR SECONDARY SCHOOL MORAJHADI (214242)",8210302201,"XXXX0509",null,9999999999,"V/PO-MORAJHADI,VILL-MORAJHADI ,,305402",48000,"N","N",null,13,"None",0]
[8,"A",462,"2018-06-25","BALRAM PRAJAPAT",null,"OMPRAKASH PRAJAPAT","SUSHILA DEVI","M","2012-11-01",null,null,null,null,"OBC","Hindu",null,"GOVT. SENIOR SECONDARY SCHOOL MORAJHADI (214242)",8210302201,"XXXX5262","YIYUUKC",9660060739,"VPO MORAJHADI,SRINAGAR,,305402",50000,"N","N","No",13,"None",0]
[8,"A",858,"2018-07-02","CHARAN",null,"BRHMANAND JAT","BADAM DEVI","M","2012-10-30",null,null,null,null,"OBC","Hindu",null,"GOVT. SENIOR SECONDARY SCHOOL MORAJHADI (214242)",8210302201,"XXXX8555",null,9799689497,"KHEDA RAGHUNATHPURA,SHREENAGAR,KHEDA RAGHUNATHPURA,305402",0,"N","N","No",13,"None",3]
[8,"A",594,"2019-08-02","DINESH MEGHAWANSHI",null,"SHAUKIN MEGHAWANSHI","KANCHAN DEVI","M","2012-05-20",null,null,null,null,"SC","Hindu",null,"GOVT. SENIOR SECONDARY SCHOOL MORAJHADI (214242)",8210302201,"XXXX1735","vtgggon",7742178143,"Keriya Khurd,Shrinagar,Keriya Khurd,305402",50000,"N","N","No",13,"None",4]
[8,"A",503,"2018-07-11","INKAR JAT",null,"KANARAM JAT","NORATI DEVI","F","2013-01-01",null,null,null,null,"OBC","Hindu",null,"GOVT. SENIOR SECONDARY SCHOOL MORAJHADI (214242)",8210302201,"XXXX9564","YKSOWGK",9999999999,"VPO MORAJHADI,SRINAGAR,,305402",65000,"N","N","No",12,"None",1]
[8,"A",824,"2018-07-10","JAISINGH BHEEL",null,"SHAITAN RAM BHEEL","MATHRA DEVI","M","2013-01-01",null,null,null,null,"ST","Hindu",null,"GOVT. SENIOR SECONDARY SCHOOL MORAJHADI (214242)",8210302201,"XXXX4042",null,8302060752,"v.keriya khurd po.morajhadi via RAMSAR teh.nasirabad,srinagar,keriya khurd,305402",0,"N","N","No",12,"None",4]
[8,"A",466,"2018-07-02","JEETU RAIDAS",null,"NARESH RAIDAS","POOJA DEVI","M","2013-06-09",null,null,null,null,"SC","Hindu",null,"GOVT. SENIOR SECONDARY SCHOOL MORAJHADI (214242)",8210302201,"XXXX9924","YBCWBQC",9460361075,"VPO MORAJHADI,SRINAGAR,,305402",50000,"N","N","No",12,"None",0]
[8,"A",582,"2019-07-27","KALPNA HARIJAN",null,"PINKU HARIJAN","SAVITA","F","2012-08-10",null,null,null,null,"SC","Hindu",null,"GOVT. SENIOR SECONDARY SCHOOL MORAJHADI (214242)",8210302201,"XXXX4711","yimymbc",9784164156,"Morajhadi,Shrinagar,Morajhadi,305402",60000,"N","N","No",13,"None",0]
[8,"A",859,"2018-07-02","KHUSHBU",null,"SATYANARAYAN NAYAK","INDRA DEVI","F","2013-09-05",null,null,null,null,"SC","Hindu",null,"GOVT. SENIOR SECONDARY SCHOOL MORAJHADI (214242)",8210302201,null,null,9799689497,"KHEDA RAGHUNATHPURA,SHREENAGAR,KHEDA RAGHUNATHPURA,305402",0,"N","N","No",12,"None",3]
[8,"A",820,"2023-07-11","Komal Devi Choudhary",null,"Basram Choudhary","Nyali Devi","F","2013-07-10",null,null,null,null,"OBC","Hindu",null,"GOVT. SENIOR SECONDARY SCHOOL MORAJHADI (214242)",8210302201,null,null,9024631677,"keriya khurd,shri nagar,keriya khurd ,305402",null,"N","N","No",12,"None",3]
[8,"A",388,"2017-07-01","KOMAL JAT",null,"KALYAN JAT","PRAKASH DEVI","F","2011-09-12",null,null,null,null,"OBC","Hindu",null,"GOVT. SENIOR SECONDARY SCHOOL MORAJHADI (214242)",8210302201,"XXXX4648",null,9460361075,"VILL JHADOL,ARAIN,,305402",70000,"N","N","No",14,"None",3]
[8,"A",504,"2018-07-11","KOMAL JAT",null,"GOPAL JAT","SURGYAN DEVI","F","2012-09-08",null,null,null,null,"OBC","Hindu",null,"GOVT. SENIOR SECONDARY SCHOOL MORAJHADI (214242)",8210302201,"XXXX5253",null,9602303051,"VPO MORAJHADI,SRINAGAR,,305402",36000,"N","N","No",13,"None",2]
[8,"A",536,"2018-07-31","KOMAL JAT",null,"SHANKAR LAL CHOUDHARY","MAMTA DEVI","F","2012-11-16",null,null,null,null,"OBC","Hindu",null,"GOVT. SENIOR SECONDARY SCHOOL MORAJHADI (214242)",8210302201,"XXXX9470","VGWGCXJ",9999999999,"VPO MORAJHADI,SRINAGAR,,305402",40000,"N","N","No",13,"None",0]
[8,"A",868,"2018-07-02","KOSHYLYA",null,"DINESH JAT","CHANTA DEVI","F","2013-09-24",null,null,null,null,"OBC","Hindu",null,"GOVT. SENIOR SECONDARY SCHOOL MORAJHADI (214242)",8210302201,"XXXX7547",null,9784480390,"KHEDA RAGHUNATHPURA,SHREENAGAR,KHEDA RAGHUNATHPURA,305402",0,"N","N","No",12,"None",3]
[8,"A",826,"2018-07-07","LAKHIRAM MEGHWANSHI",null,"HEMRAJ","MAYA DEVI","M","2012-10-12",null,null,null,null,"SC","Hindu",null,"GOVT. SENIOR SECONDARY SCHOOL MORAJHADI (214242)",8210302201,"XXXX4685",null,7412969231,"v.keriya khurd po.morajhadi via ramsar teh. nasirabad,srinagar,keriya khurd,305402",0,"N","N","No",13,"None",4]
[8,"A",933,"2025-07-11","Manish Prajapat",null,"Ramlal Prajapat","Rekha Devi","M","2013-10-14",null,null,null,null,"OBC","Hindu",null,"GOVT. SENIOR SECONDARY SCHOOL MORAJHADI (214242)",8210302201,"XXXX9226","VNHVVNV",9784721968,"JAIN MANDIR KE PASS,RAMSAR,MORJHADI,305402",80000,"N","N","No",12,"None",0]
[8,"A",665,"2021-02-26","MANU",null,"CHHOTU","SALMA","M","2010-01-01",null,null,null,null,"OBC",null,null,"GOVT. SENIOR SECONDARY SCHOOL MORAJHADI (214242)",8210302201,"XXXX4219",null,9166214978,"V/PO-MORAJHADI,VILL-MORAJHADI ,,305402",60000,"N","N",null,15,"None",0]
[8,"A",703,"2021-07-22","MONIKA JAT",null,"PRABHU JAT","SURMA DEVI","F","2010-08-06",null,null,null,null,"OBC","Hindu",null,"GOVT. SENIOR SECONDARY SCHOOL MORAJHADI (214242)",8210302201,"XXXX6235",null,7357662265,"keriya khurd,srinagar,keriya khurd,305402",70000,"N","N","No",15,"None",3]
[8,"A",950,"2025-07-21","NARAJ CHOUDHARY",null,"PARMESHWAR","Amari Devi","F","2011-06-07",null,null,null,null,"OBC","Hindu",null,"GOVT. SENIOR SECONDARY SCHOOL MORAJHADI (214242)",8210302201,"XXXX2961","WFMUYUO",9925775941,"WARD NO 5,SRINAGAR,TIHARI,305025",40000,"N","N","No",14,"None",1]
[8,"A",848,"2023-07-19","Parina",null,"Sattar","Mafiya bano","F","2011-12-15",null,null,null,null,"OBC","Muslim",null,"GOVT. SENIOR SECONDARY SCHOOL MORAJHADI (214242)",8210302201,"XXXX0152",null,9950097940,"Teli Mohalla,Shrinagar,Morajhdi,305402",0,"N","N","Yes",14,"None"]
[8,"A",869,"2018-07-02","PAYAL",null,"SHAITAN GURJAR","LADA DEVI","F","2013-01-28",null,null,null,null,"SBC","Hindu",null,"GOVT. SENIOR SECONDARY SCHOOL MORAJHADI (214242)",8210302201,"XXXX6223",null,9929266488,"KHEDA RAGHUNATHPURA,SHREENAGAR,KHEDA RAGHUNATHPURA,305402",0,"N","N","No",12,"None",3]
[8,"A",847,"2018-07-10","PINKY DEVI CHOUDHARY",null,"KANARAM CHOUDHARY","MANBHAR DEVI","F","2013-08-24",null,null,null,null,"OBC","Hindu",null,"GOVT. SENIOR SECONDARY SCHOOL MORAJHADI (214242)",8210302201,"XXXX7685",null,9664229468,"v.keriya khurd po.morajhadi via ramsar teh.nasirabad,srinagar,keriya khurd,305402",0,"N","N","No",12,"None",3]
[8,"A",870,"2021-09-12","POOJA JAT",null,"PRADHAN JAT","SURMA DEVI","F","2010-05-19",null,null,null,null,"OBC","Hindu",null,"GOVT. SENIOR SECONDARY SCHOOL MORAJHADI (214242)",8210302201,"XXXX3086",null,9602059844,"VILLAGE POST BHAGWANTPURA,ARAIN,VIA NASIRABAD,305601",63000,"N","N","No",15,"None",3]
[8,"A",935,"2025-07-12","Priyanka Prajapat",null,"Mahaveer Prajapat","Foola Devi","F","2013-06-10",null,null,null,null,"OBC","Hindu",null,"GOVT. SENIOR SECONDARY SCHOOL MORAJHADI (214242)",8210302201,"XXXX7360",null,8769161481,"MORAJHARI,SRINAGAR,SAMPRODA,305402",45000,"N","N","No",12,"None",0]
[8,"A",825,"2018-07-10","RAMSINGH BHEEL",null,"RAJU BHEEL","SUNITA DEVI","M","2012-01-01",null,null,null,null,"ST","Hindu",null,"GOVT. SENIOR SECONDARY SCHOOL MORAJHADI (214242)",8210302201,"XXXX8446",null,8302067950,"V.keriya khurd Po.morajhadi via ramsar teh.nasirabad dist.Ajmer,Srinagar,Keriya khurd,305402",0,"N","N","No",13,"None",4]
[8,"A",461,"2018-06-25","RINKU PRAJAPAT",null,"OMPRAKASH PRAJAPAT","SUSHILA DEVI","F","2010-12-01",null,null,null,null,"OBC","Hindu",null,"GOVT. SENIOR SECONDARY SCHOOL MORAJHADI (214242)",8210302201,"XXXX5194","YIYUUKC",9460361075,"VPO MORAJHADI,SRINAGAR,,305402",50000,"N","N","No",15,"None",0]
[8,"A",823,"2018-06-26","SANOJ DEVI BHEEL",null,"SHANKAR LAL BHEEL","MANJU DEVI BHEEL","F","2013-04-12",null,null,null,null,"ST","Hindu",null,"GOVT. SENIOR SECONDARY SCHOOL MORAJHADI (214242)",8210302201,"XXXX8658",null,9660617490,"v.keriyakhurd po.morajhdi vaya ramsar teh.nasirabad,srinagar,keriyakhurd,305402",0,"N","N","No",12,"None",4]
[8,"A",455,"2018-06-20","SUMAN JAT",null,"HATHI RAM JAT","GUMAN","F","2012-10-19",null,null,null,null,"OBC","Hindu",null,"GOVT. SENIOR SECONDARY SCHOOL MORAJHADI (214242)",8210302201,"XXXX4639","VKGCWWR",7023475941,"VPO MORAJHADI,SRINAGAR,,305402",65000,"N","N","No",13,"None",0]
[8,"A",836,"2018-07-07","SUMAN JAT","Late","BHAG CHAND JAT","MEERA JAT","F","2013-11-27",null,null,null,null,"OBC","Hindu",null,"GOVT. SENIOR SECONDARY SCHOOL MORAJHADI (214242)",8210302201,"XXXX5317",null,9660981331,"KERIYA KHURD MORAJHDI,SRINAGAR,SAMPRODA,305601",36000,"N","N","No",12,"None",3]
[8,"A",447,"2017-07-29","SUMAN PRAJAPAT",null,"PRAKASH PRAJAPAT","PARVATI DEVI","F","2011-07-14",null,null,null,null,"OBC","Hindu",null,"GOVT. SENIOR SECONDARY SCHOOL MORAJHADI (214242)",8210302201,"XXXX3430",null,9799809319,"VILL MORAJHADI,TEH NASIRABAD,,305402",60000,"N","N","No",14,"None",0]
[8,"A",860,"2018-07-02","SURENDRA",null,"SHAITAN JAT","GHMLA DEVI","M","2013-09-24",null,null,null,null,"OBC","Hindu",null,"GOVT. SENIOR SECONDARY SCHOOL MORAJHADI (214242)",8210302201,"XXXX4953",null,9784480390,"KHEDA RAGHUNATHPURA,SHREENAGAR,KHEDA RAGHUNATHPURA,305402",36000,"N","N","No",12,"None",3]
[8,"A",871,"2018-06-22","VIKAS CHOUDHARY",null,"RAMRATAN CHOUDHARY","SITA CHOUDAHRY","M","2013-01-30",null,null,null,null,"OBC","Hindu",null,"GOVT. SENIOR SECONDARY SCHOOL MORAJHADI (214242)",8210302201,null,null,9680663333,"GADERI,SRINAGAR,,305601",0,"N","N","No",12,"None",3]
[9,"A",723,"2021-08-21","AARTI GURJAR",null,"SAITHAN GURJAR","LADA DEVI","F","2010-11-01",null,null,null,null,"SBC",null,null,"GOVT. SENIOR SECONDARY SCHOOL MORAJHADI (214242)",8210302201,"XXXX0673",null,8003543428,"VILL-RAGHUNATHPURA KHEDA,AJMER,,305402",0,"N","N",null,15,"None",1]
[9,"A",797,"2022-07-27","Abhishek Choudhary",null,"Rajendra","Rampyari","M","2010-04-13",null,null,null,null,"OBC","Hindu",null,"GOVT. SENIOR SECONDARY SCHOOL MORAJHADI (214242)",8210302201,"XXXX2069",null,7357930925,"VILL-KHERIYA KHURD,AJMER,,305402",60000,"N","N","No",15,"None",3]
[9,"A",916,"2024-08-14","Amar Singh Bheel",null,"Premchand Bheel","Nathi Devi","M","2011-08-15",null,null,null,null,"ST",null,null,"GOVT. SENIOR SECONDARY SCHOOL MORAJHADI (214242)",8210302201,null,null,9680436570,null,null,"N","Y",null,14,null,4]
[9,"A",401,"2017-07-04","ANITA PRAJAPAT",null,"BHAGCHAND PRAJAPAT","JETHI DEVI","F","2011-06-20",null,null,null,null,"OBC","Hindu",null,"GOVT. SENIOR SECONDARY SCHOOL MORAJHADI (214242)",8210302201,"XXXX6924",null,9799271567,"VILL MORAJHADI,SRINAGAR,,305402",30000,"N","N","No",14,"None",0]
[9,"A",497,"2018-07-11","DAMODAR JAT",null,"KAILASH CHAND JAT","SAMPAT DEVI","M","2009-01-01",null,null,null,null,"OBC","Hindu",null,"GOVT. SENIOR SECONDARY SCHOOL MORAJHADI (214242)",8210302201,"XXXX5630","YKSOWOO",8003803880,"VPO MORAJHADI,SRINAGAR,,305402",60000,"N","N","No",16,"None",1]
[9,"A",864,"2023-08-10","Deepak Vaishnav",null,"Satyanarayan Vaishnav","Neraj","M","2010-10-08",null,null,null,null,"OBC","Hindu",null,"GOVT. SENIOR SECONDARY SCHOOL MORAJHADI (214242)",8210302201,"XXXX0731",null,9999999999,"VPO MORAJHADI,SRINAGAR,,305402",60000,"N","N","No",15,"None",0]
[9,"A",689,"2021-07-14","DEEPU RAM BHEEL",null,"SHANKAR LAL BHEEL","MANJU DEVI BHEEL","M","2010-06-30",null,null,null,null,"ST",null,null,"GOVT. SENIOR SECONDARY SCHOOL MORAJHADI (214242)",8210302201,"XXXX6098",null,9660617490,"keriyakhurd,srinagar,keriyakhurd,305402",48000,"N","N",null,15,"None",1]
[9,"A",777,"2022-07-13","Dillu",null,"Chhotu Teli","Salma Bano","M","2009-07-10",null,null,null,null,"OBC","Muslim",null,"GOVT. SENIOR SECONDARY SCHOOL MORAJHADI (214242)",8210302201,"XXXX7696",null,9166214978,"VILL-MORAJHARI, POST-RAMSAR, AJMER,NASIRABAD,MORAJHARI,305402",60000,"N","N","Yes",16,"None",0]
[9,"A",328,"2016-06-30","GANESH PRAJAPAT",null,"DHOOLA RAM PRAJAPAT","MANBHAR DEVI","M","2010-01-09",null,null,null,null,"OBC","Hindu",null,"GOVT. SENIOR SECONDARY SCHOOL MORAJHADI (214242)",8210302201,"XXXX8427","YGDGOCG",9799271567,"VPAMSARO MORAJHADI,TEH NASIRABAD,VPO RAMSAR,305402",48000,"N","N","No",15,"None",0]
[9,"A",751,"2021-12-04","HANSA PRAJAPAT",null,"RAMSUKH PRAJAPAT","NORTI DEVI","F","2010-03-18",null,null,null,null,"OBC","Hindu",null,"GOVT. SENIOR SECONDARY SCHOOL MORAJHADI (214242)",8210302201,"XXXX8961",null,9571721980,"VILL MORAJHADI,SRINAGAR,,305402",60000,"N","N","No",15,"None",0]
[9,"A",927,"2025-07-09","JEEVRAJ BHEEL",null,"PANCHU BHEEL","RAMESHWARI DEVI","M","2011-05-15",null,null,null,null,"ST",null,null,"GOVT. SENIOR SECONDARY SCHOOL MORAJHADI (214242)",8210302201,"XXXX2705",null,7340001264,"surajpura,srinagar,surajpura,305813",40000,"N","N",null,14,"None",0]
[9,"A",686,"2021-07-14","JIYA DEVI CHOUDHARY",null,"BHAGCHAND CHOUDHARY","NEPAL DEVI CHOUDHARY","F","2010-05-08",null,null,null,null,"OBC",null,null,"GOVT. SENIOR SECONDARY SCHOOL MORAJHADI (214242)",8210302201,"XXXX3993",null,7073084846,"keriyakhurd,srinagar,keriyakhurd,305402",36000,"N","N",null,15,"None",1]
[9,"A",795,"2022-07-27","KAMLESH JAT",null,"SHYONARAYAN JAT","NERAJ JAT","F","2010-09-04",null,null,null,null,"OBC","Hindu",null,"GOVT. SENIOR SECONDARY SCHOOL MORAJHADI (214242)",8210302201,"XXXX7335",null,8529542482,"JATO KA MOHALLA,ARAIN,DEVPURI,305801",80000,"N","N","No",15,"None",0]
[9,"A",892,"2024-07-15","KAVITA MEGHWANSHI",null,"TEJU RAM","KALI DEVI","F","2012-07-30",null,null,null,null,"SC","Hindu",null,"GOVT. SENIOR SECONDARY SCHOOL MORAJHADI (214242)",8210302201,"XXXX6436",null,9680247925,"?????? ????? ,????????,?????,305402",78000,"N","N","No",13,"None",4]
[9,"A",778,"2017-07-15","KHUSHBU DEVI BHEEL",null,"RAJU BHEEL","SUNITA DEVI","F","2012-05-15",null,null,null,null,"ST","Hindu",null,"GOVT. SENIOR SECONDARY SCHOOL MORAJHADI (214242)",8210302201,"XXXX3296",null,7737753295,"V.keriyakhurd Po.morajhdi vaya damdar teh.nasirabad dist ajmer,Srinagar,Keriyakhurd,302405",0,"N","N","No",13,"None",4]
[9,"A",403,"2017-07-04","KHUSHI RAM JAT",null,"SUKHPAL JAT","NARAJ DEVI","M","2011-06-10",null,null,null,null,"OBC","Hindu",null,"GOVT. SENIOR SECONDARY SCHOOL MORAJHADI (214242)",8210302201,"XXXX9086","VNPVNGP",9784061877,"VILL MORAJHADI,SRINAGAR,,30542",40000,"N","N","No",14,"None",0]
[9,"A",850,"2023-07-19","KIRAN CHOUDHARY",null,"SARDAR CHOUDHARY","SURGYAN DEVI","F","2010-07-05",null,null,null,null,"OBC","Hindu",null,"GOVT. SENIOR SECONDARY SCHOOL MORAJHADI (214242)",8210302201,"XXXX5323","VNPVNJV",7426931335,"VPO MORAJHADI,SRINAGAR,,305402",40000,"N","N","No",15,"None",0]
[9,"A",775,"2017-07-15","KISMAT DEVI BHEEL",null,"SHAITAN BHEEL","MATHRA DEVI","F","2012-03-20",null,null,null,null,"ST","Hindu",null,"GOVT. SENIOR SECONDARY SCHOOL MORAJHADI (214242)",8210302201,"XXXX8723",null,8302060752,"V.keriyakhurd po.morajhdi vaya prasar teh.nasirabad dist.Ajmer,Srinagar,Keriyakhurd,305402",0,"N","N","No",13,"None",4]
[9,"A",790,"2022-07-22","KOMAL",null,"PARMESHWAR","PREM DEVI","F","2011-09-10",null,null,null,null,"OBC","Hindu",null,"GOVT. SENIOR SECONDARY SCHOOL MORAJHADI (214242)",8210302201,"XXXX5060",null,9888888888,"raghunathpura kheda,srinagar,raghunathpura kheda,305402",50000,"N","N","No",14,"None",3]
[9,"A",792,"2022-07-22","KOMAL",null,"SANWAR LAL","NERAJ","F","2011-10-22",null,null,null,null,"OBC","Hindu",null,"GOVT. SENIOR SECONDARY SCHOOL MORAJHADI (214242)",8210302201,"XXXX9655",null,9888888888,"kheda raghunathpura,srinagar,kheda raghunathpura,305402",50000,"N","N","No",14,"None",3]
[9,"A",583,"2019-07-27","KRISHNA HARIJAN",null,"PANKAJ HARIJAN","SAVITA","M","2011-05-15",null,null,null,null,"SC","Hindu",null,"GOVT. SENIOR SECONDARY SCHOOL MORAJHADI (214242)",8210302201,"XXXX6713","yimymbc",9784164156,"Morajhadi,Shrinagar,Morajhadi,305402",60000,"N","N","No",14,"None",0]
[9,"A",670,"2021-03-17","Lokesh",null,"Basram","Annu","M","2011-01-26",null,null,null,null,"OBC",null,null,"GOVT. SENIOR SECONDARY SCHOOL MORAJHADI (214242)",8210302201,"XXXX7705",null,7426021076,"V/PO-MORAJHADI,VILL-MORAJHADI ,,305402",82000,"N","N",null,14,"None",0]
[9,"A",404,"2017-07-04","LOKESH PRAJAPAT",null,"KAILASH PRAJAPAT","RADHA DEVI","M","2011-01-01",null,null,null,null,"OBC","Hindu",null,"GOVT. SENIOR SECONDARY SCHOOL MORAJHADI (214242)",8210302201,"XXXX3700","YIMYOEC",9460361075,"VILL MORAJHADI,TEH NASIRABAD,,305402",40000,"N","N","No",14,"None",0]
[9,"A",638,"2020-08-14","Mahendra",null,"Ramesh","Shana","M","2011-01-01",null,null,null,null,"OBC","Hindu",null,"GOVT. SENIOR SECONDARY SCHOOL MORAJHADI (214242)",8210302201,"XXXX6268",null,9784989933,"morajhadi,srinagar,morajhadi,305402",50000,"N","N","No",14,"None",0]
[9,"A",375,"2017-05-05","MAMATA JAT",null,"LALA RAM JAT","MATHARA DEVI","F","2011-01-13",null,null,null,null,"OBC","Hindu",null,"GOVT. SENIOR SECONDARY SCHOOL MORAJHADI (214242)",8210302201,"XXXX0457","WXWBJZH",9460361075,"VILL MORAJHADI,SRINAGAR,,305402",40000,"N","N","No",14,"None",0]
[9,"A",911,"2024-07-31","MANSHA JAT",null,"PRASANN CHOUDHARY","NORATI DEVI","F","2011-09-05",null,null,null,null,"OBC",null,null,"GOVT. SENIOR SECONDARY SCHOOL MORAJHADI (214242)",8210302201,"XXXX9625",null,9784074427,"Thakurji mandir,Sirinager,Surajpura,305813",45000,"N","N",null,14,"None",0]
[9,"A",918,"2024-08-20","MAYA DEVI BHEEL",null,"FATEHRAM BHEEL","PUSI DEVI BHEEL","F","2012-01-01",null,null,null,null,"ST","Hindu",null,"GOVT. SENIOR SECONDARY SCHOOL MORAJHADI (214242)",8210302201,"XXXX2764",null,9680660982,"V.keriyakhurd po.morajhdi vaya ramsar teh.nasirabad dist Ajmer,Srinagar,Keriyakhurd,305402",80000,"N","N","No",13,"None",1]
[9,"A",574,"2019-07-24","NEELU CHOUDHARY",null,"RAMCHANDRA JAT","MAYA DEVI","F","2012-01-01",null,null,null,null,"OBC",null,null,"GOVT. SENIOR SECONDARY SCHOOL MORAJHADI (214242)",8210302201,"XXXX7703",null,9888888888,"Thakurji mandir,Sirinager,Surajpura,305813",35000,"N","N",null,13,"None",0]
[9,"A",897,"2024-07-16","Neetu Prajapat",null,"Ramlal Prajapat","Rekha Devi","F","2011-01-01",null,null,null,null,"OBC","Hindu",null,"GOVT. SENIOR SECONDARY SCHOOL MORAJHADI (214242)",8210302201,"XXXX3752","VNHVVNV",9784721968,"JAIN MANDIR KE PASS,RAMSAR,MORAJHADI,305402",80000,"N","N","No",14,"None",0]
[9,"A",890,"2024-07-13","NISHA JAT",null,"KARTAR JAT","GYARSI DEVI","F","2011-07-01",null,null,null,null,"OBC","Hindu",null,"GOVT. SENIOR SECONDARY SCHOOL MORAJHADI (214242)",8210302201,"XXXX0690","VGWGNVR",9799346348,"JAT MOHALLA,KISHANGARH,KADHA,305802",50000,"N","N","No",14,"None",3]
[9,"A",444,"2017-07-28","PAWAN PRAJAPAT",null,"PARASRAM PRAJAPAT","GANESHI DEVI","M","2010-03-09",null,null,null,null,"OBC","Hindu",null,"GOVT. SENIOR SECONDARY SCHOOL MORAJHADI (214242)",8210302201,"XXXX1903",null,9460361075,"VILL MORAJHADI,SRINAGAR,,305402",60000,"N","N","No",15,"None",0]
[9,"A",451,"2017-08-29","POOJA PRAJAPAT",null,"KAILASH PRAJAPAT","SUSHILA DEVI","F","2010-11-11",null,null,null,null,"OBC","Hindu",null,"GOVT. SENIOR SECONDARY SCHOOL MORAJHADI (214242)",8210302201,null,null,9829933424,"VILL MORAJHADI,SRINAGAR,,305402",60000,"N","N","No",15,"None",0]
[9,"A",405,"2017-07-04","POOJA PRAJAPAT",null,"SANWARA PRAJAPAT","SUMITRA DEVI","F","2010-11-15",null,null,null,null,"OBC","Hindu",null,"GOVT. SENIOR SECONDARY SCHOOL MORAJHADI (214242)",8210302201,"XXXX7372",null,9460361075,"VILL MORAJHADI,SRINAGAR,,305402",58000,"N","N","No",15,"None",0]
[9,"A",779,"2017-07-11","PRIYANKA DEVI CHOUDHARY",null,"BHERU LAL CHOUDHARY","SURGYAN DEVI","F","2012-04-20",null,null,null,null,"OBC","Hindu",null,"GOVT. SENIOR SECONDARY SCHOOL MORAJHADI (214242)",8210302201,"XXXX5364",null,9829399003,"V.keriyakhurd Po.morajhdi beta damdar teh.nasirabad dist Ajmer,Srinagar,Keriyakhurd,305402",0,"N","N","No",13,"None",3]
[9,"A",470,"2018-07-04","PRIYANKA MEGHWANSHI",null,"HANUMAN MEGHWANSHI","MAMTA DEVI","F","2010-11-28",null,null,null,null,"SC","Hindu",null,"GOVT. SENIOR SECONDARY SCHOOL MORAJHADI (214242)",8210302201,"XXXX5183","VPPGRGV",7976909816,"VPO MORAJHADI,SRINAGAR,,305402",40000,"N","N","No",15,"None",1]
[9,"A",913,"2024-07-31","PUKHRAJ BHEEL",null,"RAMESHWAR BHEEL","ASHA DEVI","M","2008-08-05",null,null,null,null,"ST",null,null,"GOVT. SENIOR SECONDARY SCHOOL MORAJHADI (214242)",8210302201,"XXXX1303","YISFAKK",9950446246,"beelo ka mohalla,srinagar,surajpura,305813",45000,"N","N",null,17,"None",0]
[9,"A",445,"2017-07-28","RINKU PRAJAPAT",null,"DHARMICHAND PRAJAPAT","RAMKANYA DEVI","F","2012-01-01",null,null,null,null,"OBC","Hindu",null,"GOVT. SENIOR SECONDARY SCHOOL MORAJHADI (214242)",8210302201,"XXXX8463",null,8003573992,"VILL MORAJHADI,SRINAGAR,,305402",50000,"N","N","No",13,"None",0]
[9,"A",376,"2017-06-23","SAMEER JAT",null,"KALU RAM JAT","RESH DEVI","M","2011-08-07",null,null,null,null,"OBC","Hindu",null,"GOVT. SENIOR SECONDARY SCHOOL MORAJHADI (214242)",8210302201,"XXXX9676","YGFFYUO",9001840492,"VILL MORAJHADI,SRINAGAR,,305402",40000,"N","N","No",14,"None",0]
[9,"A",783,"2018-07-23","SAMINA DEVI CHOUDHARY",null,"KANARAM CHOUDHARY","MANBHAR DEVI","F","2013-04-10",null,null,null,null,"OBC","Hindu",null,"GOVT. SENIOR SECONDARY SCHOOL MORAJHADI (214242)",8210302201,"XXXX0095",null,7339912713,"V.keriyakhurd Po.morajhdi vaya damdar teh.nasirabad dist Ajmer,Srinagar,Keriyakhurd,305402",0,"N","N","No",12,"None",3]
[9,"A",931,"2025-07-10","SANJU BHEEL",null,"GHEESA BHEEL","RAMKANYA BHEEL","F","2011-03-30",null,null,null,null,"ST",null,null,"GOVT. SENIOR SECONDARY SCHOOL MORAJHADI (214242)",8210302201,"XXXX4483",null,9888888888,"Bhilo Ka mohlla,Sirinager,Surajpura,305813",30000,"N","N",null,14,"None",0]
[9,"A",945,"2025-07-17","Sanju Choudhary",null,"Basram Choudhary","Amari Devi","F","2012-01-27",null,null,null,null,"OBC",null,null,"GOVT. SENIOR SECONDARY SCHOOL MORAJHADI (214242)",8210302201,null,null,9680178520,null,null,"N","Y",null,13,null,2]
[9,"A",631,"2020-08-13","SHAITAN JAT",null,"Basram Jat","CHANTA DEVI","M","2010-01-01",null,null,null,null,"OBC","Hindu",null,"GOVT. SENIOR SECONDARY SCHOOL MORAJHADI (214242)",8210302201,"XXXX0735",null,9784038172,"morajhadi,srinagar,morajhadi,305402",60000,"N","N","No",15,"None",0]
[9,"A",725,"2021-08-23","Shaukeen Prajapat",null,"Hansraj Prajapat","Prem Devi","M","2011-08-03",null,null,null,null,"OBC",null,null,"GOVT. SENIOR SECONDARY SCHOOL MORAJHADI (214242)",8210302201,"XXXX6921",null,9929611454,"V/PO-MORAJHADI,VILL-MORAJHADI ,,305402",80000,"N","N",null,14,"None",0]
[9,"A",932,"2025-07-10","Shivam Dadhich",null,"Prakash Chandra Sharma","Lalita Sharma","M","2012-03-20",null,null,null,null,"GEN",null,null,"GOVT. SENIOR SECONDARY SCHOOL MORAJHADI (214242)",8210302201,null,null,9001860112,null,null,"N","Y",null,13,null,0]
[9,"A",928,"2025-07-09","SHIVRAJ BHEEL",null,"PANCHU BHEEL","RAMESHWARI DEVI","M","2012-11-05",null,null,null,null,"ST",null,null,"GOVT. SENIOR SECONDARY SCHOOL MORAJHADI (214242)",8210302201,"XXXX3833",null,7340001264,"surajpura,srinagar,surajpura,305813",45000,"N","N",null,13,"None",0]
[9,"A",749,"2021-11-23","Sonika",null,"Rajendra Jat","Rampyari","F","2011-01-01",null,null,null,null,"OBC","Hindu",null,"GOVT. SENIOR SECONDARY SCHOOL MORAJHADI (214242)",8210302201,"XXXX5144",null,9950030925,null,null,"N","N","No",14,"None",3]
[9,"A",411,"2017-07-05","SUKHPAL PRAJAPAT",null,"HANUMAN PRAJAPAT","SAYARI","M","2011-04-15",null,null,null,null,"OBC","Hindu",null,"GOVT. SENIOR SECONDARY SCHOOL MORAJHADI (214242)",8210302201,"XXXX2959",null,9460361075,"VILL MORAJHADI,SRINAGAR,,305402",30000,"N","N","No",14,"None",0]
[9,"A",602,"2019-08-28","Suman Choudhary",null,"Gopal Choudhary","Mandraj Devi","F","2012-08-21",null,null,null,null,"OBC",null,null,"GOVT. SENIOR SECONDARY SCHOOL MORAJHADI (214242)",8210302201,"XXXX2311",null,9680178520,"V/PO-MORAJHADI,VILL-MORAJHADI ,,305402",38000,"N","N",null,13,"None",0]
[9,"A",943,"2025-07-16","Sunil Choudhary",null,"Shokin Jat","Indra Devi","M","2011-03-14",null,null,null,null,"OBC",null,null,"GOVT. SENIOR SECONDARY SCHOOL MORAJHADI (214242)",8210302201,null,null,9928429376,null,null,"N","Y",null,14,null,1]
[9,"A",382,"2017-06-28","SUNITA PRAJAPAT",null,"PRABHU PRAJAPAT","SITA DEVI","F","2011-03-20",null,null,null,null,"OBC","Hindu",null,"GOVT. SENIOR SECONDARY SCHOOL MORAJHADI (214242)",8210302201,"XXXX4983","YIGMFFW",9460361075,"VILL MORAJHADI,SRINAGAR,,305402",70000,"N","N","No",14,"None",0]
[9,"A",946,"2025-07-17","Ummed Singh Choudhary",null,"Ram Singh","Ganga Devi","M","2010-05-05",null,null,null,null,"OBC",null,null,"GOVT. SENIOR SECONDARY SCHOOL MORAJHADI (214242)",8210302201,"XXXX7084",null,9784485531,"tejajji chowk,srinagar,surajpura,305813",50000,"N","N",null,15,"None",0]
[9,"A",402,"2017-07-04","VIJAY MEGHWANSHI",null,"DHANRAJ MEGHWANSHI","MANJU DEVI","M","2011-06-03",null,null,null,null,"SC","Hindu",null,"GOVT. SENIOR SECONDARY SCHOOL MORAJHADI (214242)",8210302201,"XXXX0477","YYAKSDO",9460361075,"VILL MORAJHADI,SRINAGAR,,305402",40000,"N","N","No",14,"None",0]
[9,"A",944,"2025-07-17","Yashraj Choudhary",null,"Basram Choudhary","Amari Devi","M","2010-07-21",null,null,null,null,"OBC",null,null,"GOVT. SENIOR SECONDARY SCHOOL MORAJHADI (214242)",8210302201,null,null,9660989238,null,null,"N","Y",null,15,null,3]
[9,"A",661,"2021-02-24","Yasmin",null,"Ahasan Ali","Naraj Banu","F","2009-04-29",null,null,null,null,"OBC",null,null,"GOVT. SENIOR SECONDARY SCHOOL MORAJHADI (214242)",8210302201,"XXXX9680",null,9829997619,"V/PO-MORAJHADI,VILL-MORAJHADI ,,305402",80000,"N","N",null,16,"None",0]
[10,"A",506,"2018-07-11","ANJU JAT",null,"KAILASH CHAND JAT","SAMPAT DEVI","F","2009-01-01",null,null,null,null,"OBC","Hindu",null,"GOVT. SENIOR SECONDARY SCHOOL MORAJHADI (214242)",8210302201,"XXXX8095",null,8003803880,"VPO MORAJHADI,SRIANAGAR,,305402",50000,"N","N","No",16,"None",0]
[10,"A",571,"2019-07-15","ARJUN JAT",null,"KAILASH JAT","JADAV DEVI","M","2009-05-05",null,null,null,null,"OBC","Hindu",null,"GOVT. SENIOR SECONDARY SCHOOL MORAJHADI (214242)",8210302201,"XXXX0799","WFGKGVG",9950482756,"VILL MORAJHADI,SHRINAGAR,VIA RAMSAR,305402",36000,"N","N","No",16,"None",0]
[10,"A",692,"2021-07-15","Cheana Jat",null,"Hardayal Jat","Meera Devi","F","2010-01-01",null,null,null,null,"OBC","Hindu",null,"GOVT. SENIOR SECONDARY SCHOOL MORAJHADI (214242)",8210302201,"XXXX4136",null,7726051917,"VILL-KERIYAKHURD,BLOCK-SRINAGAR,POST-MORAJHADI,305402",60000,"N","N","No",15,"None",3]
[10,"A",352,"2016-07-06","DEEPAK JAT",null,"BHAGCHAND JAT","LALI DEVI","M","2010-01-18",null,null,null,null,"OBC","Hindu",null,"GOVT. SENIOR SECONDARY SCHOOL MORAJHADI (214242)",8210302201,"XXXX8893","WFOKCDS",7023193750,"VPO MORAJHADI,TEH NASIRABAD,VIA RAMSAR,305402",60000,"N","N","No",15,"None",0]
[10,"A",698,"2021-07-20","Karina Jat",null,"Gopiram Choudhary","Seema Devi","F","2011-01-01",null,null,null,null,"OBC","Hindu",null,"GOVT. SENIOR SECONDARY SCHOOL MORAJHADI (214242)",8210302201,"XXXX0702",null,9001202341,"KERIYAKHURD,SRINARAR,MORAJHADI,305402",0,"N","N","No",14,"None",3]
[10,"A",521,"2018-07-24","KARTIK VAISHNAV",null,"SATYANARAYAN VAISHNAV","NERAJ DEVI","M","2008-09-10",null,null,null,null,"OBC","Hindu",null,"GOVT. SENIOR SECONDARY SCHOOL MORAJHADI (214242)",8210302201,"XXXX2619","BCIDFAB",9999999999,"VILL MORAJHADI,SRINAGAR,,305402",40000,"N","N","No",17,"None",0]
[10,"A",349,"2016-07-05","KHUSHI MEGHWANSHI",null,"RAMDHAN MEGHWANSHI","PANCHI DEVI","F","2008-12-16",null,null,null,null,"SC","Hindu",null,"GOVT. SENIOR SECONDARY SCHOOL MORAJHADI (214242)",8210302201,"XXXX7184","VGVNBNJ",9829430971,"VPO MORAJHADI,TEH NASIRABAD,VIA RAMSAR,305402",60000,"N","N","No",17,"None",0]
[10,"A",714,"2021-08-02","Khushi Ram",null,"Shaitan","Mand Raj Devi","M","2009-04-23",null,null,null,null,"OBC","Hindu",null,"GOVT. SENIOR SECONDARY SCHOOL MORAJHADI (214242)",8210302201,"XXXX0397",null,7976550858,"KERIYAKHURD,SRINAGAR,KERIYAKHURD,305402",0,"N","N","No",16,"None",3]
[10,"A",326,"2016-06-25","KIRAN RAIDAS",null,"KALU RAM RAIDAS","SONU DEVI","F","2009-11-02",null,null,null,null,"SC","Hindu",null,"GOVT. SENIOR SECONDARY SCHOOL MORAJHADI (214242)",8210302201,"XXXX7218","VKSKXZV",8890861312,"VPO MORAJHADI,TEH NASIRABAD,VIA RAMSAR,305402",48000,"N","N","No",16,"None",0]
[10,"A",947,"2025-07-17","Kritika Vaishnav",null,"Sanjay Vaishnav","Kalawati Devi","F","2010-09-05",null,null,null,null,"OBC","Hindu",null,"GOVT. SENIOR SECONDARY SCHOOL MORAJHADI (214242)",8210302201,"XXXX8980",null,9079852090,"VILLAGE - MORAJHADI,SRINAGAR,VIA- RAMSAR,305601",72000,"N","N","No",15,"None",20]
[10,"A",361,"2016-07-15","LEELA PRAJAPAT",null,"BIRDI CHAND PRAJAPAT","SHYAMA DEVI","F","2010-03-10",null,null,null,null,"OBC","Hindu",null,"GOVT. SENIOR SECONDARY SCHOOL MORAJHADI (214242)",8210302201,"XXXX2422",null,8890787263,"VPO MORAJHADI,TEH NASIRABAD,VIA RAMSAR,305402",40000,"N","N","No",15,"None",0]
[10,"A",343,"2016-07-04","MAHENDRA CHOUDHARY",null,"HETRAM CHOUDHARY","MAINA DEVI","M","2008-08-01",null,null,null,null,"OBC","Hindu",null,"GOVT. SENIOR SECONDARY SCHOOL MORAJHADI (214242)",8210302201,"XXXX7212","YJSFEIK",9660630181,"VPO MORAJHADI,TEH NASIRABAD,VIA RAMSAR,305402",40000,"N","N","No",17,"None",0]
[10,"A",517,"2018-07-14","MAHENDRA CHOUDHARY",null,"SHYOJI CHOUDHARY","MANFOOL DEVI","M","2010-03-10",null,null,null,null,"OBC","Hindu",null,"GOVT. SENIOR SECONDARY SCHOOL MORAJHADI (214242)",8210302201,"XXXX3349","VMMJHNV",9680679728,"VPO MORAJHADI,SRINAGAR,,305402",60000,"N","N","No",15,"None",0]
[10,"A",741,"2021-09-29","Mallika",null,"Kaluram Choudhary","Ganga Devi","F","2011-03-26",null,null,null,null,"OBC","Hindu",null,"GOVT. SENIOR SECONDARY SCHOOL MORAJHADI (214242)",8210302201,"XXXX4480",null,6376292859,"VILL-KHERIYA KHURD,AJMER,,305402",50000,"N","N","No",14,"None",3]
[10,"A",505,"2018-07-11","MAMTA JAT",null,"KANARAM JAT","NORATI DEVI","F","2010-10-13",null,null,null,null,"OBC","Hindu",null,"GOVT. SENIOR SECONDARY SCHOOL MORAJHADI (214242)",8210302201,"XXXX0155","YKSOWGK",9829798229,"VPO MORAJHADI,SRINAGAR,,305402",60000,"N","N","No",15,"None",1]
[10,"A",785,"2022-07-22","MANISHA JAT",null,"BHAGCHAND JAT","RAJI DEVI","F","2006-07-08",null,null,null,null,"OBC","Hindu",null,"GOVT. SENIOR SECONDARY SCHOOL MORAJHADI (214242)",8210302201,"XXXX0721","VNPVPBV",7424969869,"VILL MORAJHADI,SHRINAGAR,VIA RAMSAR,305402",46000,"N","N","No",19,"None",0]
[10,"A",522,"2018-07-16","MOHAN DEVI",null,"RAMDEV CHOUDHARY","MEERA DEVI","F","2010-06-10",null,null,null,null,"OBC","Hindu",null,"GOVT. SENIOR SECONDARY SCHOOL MORAJHADI (214242)",8210302201,"XXXX6245","YOOIUES",9001211239,"VILL KERIYA KHURD,SRINAGAR,PO MORAJHADI,305402",60000,"N","N","No",15,"None",3]
[10,"A",904,"2024-07-19","Naraj",null,"Ramgopal","Barma Devi","F","2009-06-22",null,null,null,null,"OBC","Hindu",null,"GOVT. SENIOR SECONDARY SCHOOL MORAJHADI (214242)",8210302201,"XXXX9709",null,8829021302,"Kanpura,Sri nagar,Kanpura,305025",72000,"N","N","No",16,"None",0]
[10,"A",390,"2017-07-01","POOJA CHOUDHARY",null,"SONARAYAN CHOUDHARY","NARAJ DEVI","F","2010-09-04",null,null,null,null,"OBC","Hindu",null,"GOVT. SENIOR SECONDARY SCHOOL MORAJHADI (214242)",8210302201,"XXXX6892","YUEWBWK",8529542482,"VILL MORAJHADI,SRINAGR,,305402",60000,"N","N","No",15,"None",0]
[10,"A",687,"2021-07-14","PRIYANKA DEVI MEGHWANSHI",null,"RAJU MEGHWANSHI","MANJU DEVI","F","2009-10-24",null,null,null,null,"SC",null,null,"GOVT. SENIOR SECONDARY SCHOOL MORAJHADI (214242)",8210302201,"XXXX2689",null,9660524371,"keriyakhurd,srinagar,keriyakhurd,305402",48000,"N","N",null,16,"None",1]
[10,"A",329,"2016-07-01","PRIYANKA PRAJAPAT",null,"GANESH PRAJAPAT","ASHA DEVI","F","2009-08-02",null,null,null,null,"OBC","Hindu",null,"GOVT. SENIOR SECONDARY SCHOOL MORAJHADI (214242)",8210302201,"XXXX3794","YIAYYKW",9829385543,"VPO MORAJHADI,TEH NASIRABAD,VIA RAMSAR,305402",48000,"N","N","No",16,"None",0]
[10,"A",325,"2016-05-09","RAM SINGH JAT",null,"MISHRI JAT","KALI DEVI","M","2010-04-28",null,null,null,null,"OBC","Hindu",null,"GOVT. SENIOR SECONDARY SCHOOL MORAJHADI (214242)",8210302201,"XXXX7351","VZPGNHT",8290250567,"VPO MORAJHADI,TEH NASIRABAD,VIA RAMSAR,305402",48000,"N","N","No",15,"None",0]
[10,"A",742,"2021-09-29","RASILA DEVI CHOUDHARY",null,"KANARAM","MANBHAR DEVI","F","2010-04-10",null,null,null,null,"OBC","Hindu",null,"GOVT. SENIOR SECONDARY SCHOOL MORAJHADI (214242)",8210302201,"XXXX1721",null,7339912713,"Jato Ka Bas,Arain,Mohammadgarh,305412",45000,"N","N","No",15,"None",1]
[10,"A",523,"2018-07-25","REENA JAT",null,"KALU RAM JAT","SANTOSH DEVI","F","2012-05-02",null,null,null,null,"OBC","Hindu",null,"GOVT. SENIOR SECONDARY SCHOOL MORAJHADI (214242)",8210302201,"XXXX0841","YIAGIUS",9929463419,"VPO MORAJHADI,SRINAGAR,,305402",60000,"N","N","No",13,"None",3]
[10,"A",697,"2021-07-20","Rohit",null,"Shyojiram Jat","Kali Devi","M","2008-08-06",null,null,null,null,"OBC","Hindu",null,"GOVT. SENIOR SECONDARY SCHOOL MORAJHADI (214242)",8210302201,"XXXX2536",null,6367778732,"keriya khurd,keriya khurd ,keriya khurd,305402",50000,"N","N","No",17,"None",3]
[10,"A",896,"2024-07-16","SALTA BHEEL",null,"PAPPU BHEEL","LADA DEVI","F","2010-01-23",null,null,null,null,"ST",null,null,"GOVT. SENIOR SECONDARY SCHOOL MORAJHADI (214242)",8210302201,"XXXX0958",null,8955808192,"Bhulo ka mohalla,Sirinager,Surajpura,305813",30000,"N","N",null,15,"None",0]
[10,"A",407,"2017-07-04","SANJU CHOUDHARY",null,"RAYMAL CHOUDHARY","MATHURA DEVI","F","2011-02-02",null,null,null,null,"OBC","Hindu",null,"GOVT. SENIOR SECONDARY SCHOOL MORAJHADI (214242)",8210302201,"XXXX6804",null,9784061074,"VILL MORAJHADI,SRINAGAR,,305402",40000,"N","N","No",14,"None",0]
[10,"A",524,"2018-07-27","SEEMA CHOUDHARY",null,"KAILASH CHOUDHARY","RAMKANYA DEVI","F","2009-08-04",null,null,null,null,"OBC","Hindu",null,"GOVT. SENIOR SECONDARY SCHOOL MORAJHADI (214242)",8210302201,"XXXX4437",null,9660845025,"VPO MORAJHADI,SRINAGAR,,305402",60000,"N","N","No",16,"None",0]
[10,"A",773,"2022-07-13","SHEELA",null,"HEMRAJ","LADI DEVI","F","2011-01-20",null,null,null,null,"OBC","Hindu",null,"GOVT. SENIOR SECONDARY SCHOOL MORAJHADI (214242)",8210302201,"XXXX1471",null,9602068275,"dadiya,arain,dadiya,305813",39000,"N","N","No",14,"None",1]
[10,"A",626,"2020-08-13","Sintu Jat",null,"RANJEET JAT","Kamla Devi","F","2009-08-31",null,null,null,null,"OBC","Hindu",null,"GOVT. SENIOR SECONDARY SCHOOL MORAJHADI (214242)",8210302201,"XXXX5116",null,9784173672,"V/PO-MORAJHADI,VILL-MORAJHADI ,,305402",60000,"N","N","No",16,"None",0]
[10,"A",406,"2017-07-04","SUMAN CHOUDHARY",null,"JAY SINGH CHOUDHARY","NARBADA DEVI","F","2011-05-05",null,null,null,null,"OBC","Hindu",null,"GOVT. SENIOR SECONDARY SCHOOL MORAJHADI (214242)",8210302201,"XXXX5811","VOOCJWV",9929249134,"VILL MORAJHADI,SRINAGAR,,305402",40000,"N","N","No",14,"None",0]
[10,"A",357,"2016-07-13","SUMAN CHOUDHARY",null,"HAGAMA CHOUDHARY","MATRA DEVI","F","2011-08-01",null,null,null,null,"OBC","Hindu",null,"GOVT. SENIOR SECONDARY SCHOOL MORAJHADI (214242)",8210302201,"XXXX1173","VPJCSBR",8003052757,"VILL KERIYA KHURD,TEH NASIRABAD,PO RAMSAR,305402",55000,"N","N","No",14,"None",3]
[10,"A",324,"2016-05-07","SUMAN JAT",null,"LALA RAM JAT","MATHURA DEVI","F","2010-06-30",null,null,null,null,"OBC","Hindu",null,"GOVT. SENIOR SECONDARY SCHOOL MORAJHADI (214242)",8210302201,"XXXX8683","WXWBJZH",7340609672,"VPO MORAJHADI,TEH NASIRABAD,VIA RAMSAR,305402",40000,"N","N","No",15,"None",0]
[10,"A",555,"2019-07-06","SUMAN JAT",null,"SHAUNKIN JAT","INDRA DEVI","F","2010-02-09",null,null,null,null,"OBC","Hindu",null,"GOVT. SENIOR SECONDARY SCHOOL MORAJHADI (214242)",8210302201,"XXXX4595","vkgcpxn",9928429376,"Morajhadi,Shrinagar,Morajhadi,305402",48000,"N","N","No",15,"None",0]
[10,"A",681,"2021-07-09","SUNIL KUMAR BHEEL",null,"DHARMRAJ BHEEL","CHHOTI DEVI BHEEL","M","2010-06-01",null,null,null,null,"ST",null,null,"GOVT. SENIOR SECONDARY SCHOOL MORAJHADI (214242)",8210302201,"XXXX6313",null,9784100946,"keriyakhurd,srinagar,keriyakhurd,305402",50000,"N","N",null,15,"None",1]
[10,"A",695,"2021-07-15","Suraj Prajapat",null,"Bhagchand Kumhar","Panchi Devi","M","2011-09-06",null,null,null,null,"OBC","Hindu",null,"GOVT. SENIOR SECONDARY SCHOOL MORAJHADI (214242)",8210302201,"XXXX4165",null,9636679739,"V/PO-MORAJHADI,VILL-MORAJHADI ,,305402",50000,"N","N","No",14,"None",0]
[10,"A",351,"2016-07-06","SURENDRA CHOUDHARY",null,"HARI RAM CHOUDHARY","RAMSWARI DEVI","M","2010-07-15",null,null,null,null,"OBC","Hindu",null,"GOVT. SENIOR SECONDARY SCHOOL MORAJHADI (214242)",8210302201,"XXXX4857","YIWSWQO",9001682700,"VPO MORAJHADI,TEH NASIRABAD,VIA RAMSAR,305402",70000,"N","N","No",15,"None",0]
[10,"A",356,"2016-07-13","TANVI JANGID",null,"NANDKISHOR JANGID","MAMTA JANGID","F","2010-06-11",null,null,null,null,"OBC","Hindu",null,"GOVT. SENIOR SECONDARY SCHOOL MORAJHADI (214242)",8210302201,"XXXX1236","YGBMBYO",9950699293,"VPO MORAJHADI,TEH NASIRABAD,VIA RAMSAR,305402",50000,"N","N","No",15,"None",0]
[10,"A",438,"2017-07-21","TEJPAL CHOUDHARY",null,"HANSRAJ CHOUDHARY","KALI DEVI","M","2011-08-03",null,null,null,null,"OBC","Hindu",null,"GOVT. SENIOR SECONDARY SCHOOL MORAJHADI (214242)",8210302201,"XXXX8440","VNNJHKX",9460361075,"VILL MORAJHADI,SRINAGAR,,305402",60000,"N","N","No",14,"None",0]
[10,"A",327,"2016-06-27","VINOD PRAJAPAT",null,"MAHAVEER PRAJAPAT","MANBHAR DEVI","M","2010-01-13",null,null,null,null,"OBC","Hindu",null,"GOVT. SENIOR SECONDARY SCHOOL MORAJHADI (214242)",8210302201,"XXXX7027","VNGOHHV",9636679743,"VPO MORAJHADI,TEH NASIRABAD,VIA RAMSAR,305402",60000,"N","N","No",15,"None",0]
[11,"A",948,"2025-07-21","Brahmanand Choudhary",null,"Badri Lal Choudhary","Sambhudi Devi","M","2010-06-13",null,null,null,null,"OBC",null,null,"GOVT. SENIOR SECONDARY SCHOOL MORAJHADI (214242)",8210302201,null,null,8769252653,null,null,"N","Y",null,15,null,0]
[11,"A",591,"2019-08-02","CHANNU BHEEL",null,"MAHAVEER BHEEL","MANDRAJ DEVI","F","2010-02-25",null,null,null,null,"ST","Hindu",null,"GOVT. SENIOR SECONDARY SCHOOL MORAJHADI (214242)",8210302201,"XXXX2054","VBZTJJK",9999999999,"Morajhadi,Shrinagar,Morajhadi,305402",48000,"N","N","No",15,"None",3]
[11,"A",227,null,"DEEPAK PRAJAPAT",null,"SHRAWAN PRAJAPAT","SANTOSH DEVI","M","2006-07-02",null,null,null,null,"OBC","Hindu",null,"GOVT. SENIOR SECONDARY SCHOOL MORAJHADI (214242)",8210302201,"XXXX5614","VSPNWNV",9001131547,"VILL MORAJHDI,SHRINAGAR,VIA RAMSAR,305402",40000,"N","N","No",19,"None",0]
[11,"A",637,"2020-08-14","DEEPU",null,"RAMESH","SHANA","M","2008-01-01",null,null,null,null,"OBC","Hindu",null,"GOVT. SENIOR SECONDARY SCHOOL MORAJHADI (214242)",8210302201,"XXXX9296",null,9784989933,"morajhadi,SRINAGAR,morajhadi,305402",50000,"N","N","No",17,"None",0]
[11,"A",374,"2016-10-17","DINESH JAT",null,"JORU JAT","SUMITRA DEVI","M","2011-03-04",null,null,null,null,"OBC","Hindu",null,"GOVT. SENIOR SECONDARY SCHOOL MORAJHADI (214242)",8210302201,"XXXX4858","YKSOCSC",9460361075,"VPO MORAJHADI,TEH NASIRABAD,VIA RAMSAR,305402",40000,"N","N","No",14,"None",0]
[11,"A",619,"2020-08-10","GORA",null,"BHAGCHAND","SURTA DEVI","F","2008-05-14",null,null,null,null,"SBC",null,null,"GOVT. SENIOR SECONDARY SCHOOL MORAJHADI (214242)",8210302201,"XXXX6791",null,9888888888,"kheda raghunath pura,shrinagar,,305402",0,"N","N",null,17,"None",1]
[11,"A",256,null,"GORA JAT",null,"RAYMAL JAT","MATHARA DEVI","F","2009-06-20",null,null,null,null,"OBC","Hindu",null,"GOVT. SENIOR SECONDARY SCHOOL MORAJHADI (214242)",8210302201,"XXXX2464","YKSOCSC",9950193738,"VILL MORAJHADI,SHRINAGAR,VIA RAMSAR,305402",36000,"N","N","No",16,"None",0]
[11,"A",815,"2023-07-07","Kamlesh Choudhary",null,"Pradhan Choudhary","Neraj Devi","F","2010-01-11",null,null,null,null,"OBC",null,null,"GOVT. SENIOR SECONDARY SCHOOL MORAJHADI (214242)",8210302201,"XXXX8983",null,9680834313,null,null,"N","Y",null,15,null,0]
[11,"A",426,"2017-07-07","KANHAIYA KUMHAR",null,"KALU RAM KUMHAR","NARAYANI DEVI","M","2009-06-30",null,null,null,null,"OBC","Hindu",null,"GOVT. SENIOR SECONDARY SCHOOL MORAJHADI (214242)",8210302201,"XXXX7055","VRPTXXV",9460361075,"VILL MORAJHADI,TEH NASIRABAD,,305402",60000,"N","N","No",16,"None",0]
[11,"A",663,"2021-02-22","KARTAR CHOUDHARY",null,"RAMRAJ CHOUDHARY","RUKMA","M","2009-07-10",null,null,null,null,"OBC",null,null,"GOVT. SENIOR SECONDARY SCHOOL MORAJHADI (214242)",8210302201,"XXXX4516",null,9928591989,"V/PO-MORAJHADI,VILL-MORAJHADI ,,305402",50000,"N","N",null,16,"None",0]
[11,"A",600,"2019-08-22","KAVITA PRAJAPAT",null,"BASRAM PRAJAPAT","ANNU DEVI","F","2009-07-14",null,null,null,null,"OBC","Hindu",null,"GOVT. SENIOR SECONDARY SCHOOL MORAJHADI (214242)",8210302201,"XXXX1877",null,7297014852,"V/PO-MORAJHADI,VILL-MORAJHADI ,,305402",50000,"N","N","No",16,"None",0]
[11,"A",299,null,"KHUSHI RAM JAT",null,"RAM LAL JAT","KALI DEVI","M","2009-08-02",null,null,null,null,"OBC","Hindu",null,"GOVT. SENIOR SECONDARY SCHOOL MORAJHADI (214242)",8210302201,"XXXX9937","YIMYIEW",9950773319,"VILL MORAJHADI,SHRINAGAR,VIA RAMSAR,305402",36000,"N","N","No",16,"None",0]
[11,"A",393,"2017-07-01","MANISHA CHOUDHARY",null,"SONARAYAN CHOUDHARY","NARAJ DEVI","F","2008-07-15",null,null,null,null,"OBC","Hindu",null,"GOVT. SENIOR SECONDARY SCHOOL MORAJHADI (214242)",8210302201,"XXXX4672","BCQUEQG",9460103675,"VILL MORAJHADI,TEH NASIRABAD,,305402",48000,"N","N","No",17,"None",0]
[11,"A",260,null,"MANSHA JAT",null,"KALU RAM JAT","RESH DEVI","F","2010-01-05",null,null,null,null,"OBC","Hindu",null,"GOVT. SENIOR SECONDARY SCHOOL MORAJHADI (214242)",8210302201,"XXXX6920","YGFFYUO",9001840492,"VILL MORAJHADI,SHRINAGAR,VIA RAMSAR,305402",36000,"N","N","No",15,"None",0]
[11,"A",300,"2015-07-08","NARAJ PRAJAPAT",null,"KAILASH PRAJAPAT","KANCHAN DEVI","F","2009-07-06",null,null,null,null,"OBC","Hindu",null,"GOVT. SENIOR SECONDARY SCHOOL MORAJHADI (214242)",8210302201,"XXXX1280","VGBPRTV",9799240138,"VILL MORAJHADI,SHRINAGAR,VIA RAMSAR,305402",48000,"N","N","No",16,"None",0]
[11,"A",336,"2016-07-02","NEETU CHOUDHARY",null,"KARTAR CHOUDHARY","GYARSI DEVI","F","2009-02-15",null,null,null,null,"OBC","Hindu",null,"GOVT. SENIOR SECONDARY SCHOOL MORAJHADI (214242)",8210302201,"XXXX8383","VGWGNVR",9799346348,"VILL KERIYA KHURD,TEH NASIRABAD,PO MORAJHADI,305402",62000,"N","N","No",16,"None",3]
[11,"A",764,"2022-07-05","PRAKASH CHOUDHARY",null,"RAMSINGH CHOUDHARY","SAMOTRA DEVI","M","2009-08-08",null,null,null,null,"OBC","Hindu",null,"GOVT. SENIOR SECONDARY SCHOOL MORAJHADI (214242)",8210302201,"XXXX3897","YGFFYSK",7340134952,"VPO MORAHADI,SRINAGAR,,305402",60000,"N","N","No",16,"None",1]
[11,"A",345,"2016-07-04","PRAVEEN CHOUDHARY",null,"HETRAM CHOUADHARY","MAINA DEVI","M","2008-04-12",null,null,null,null,"OBC","Hindu",null,"GOVT. SENIOR SECONDARY SCHOOL MORAJHADI (214242)",8210302201,"XXXX2074","YGSFEIK",9660630181,"VPO MORAJHADI,TEH NASIRABAD,VIA RAMSAR,305402",60000,"N","N","No",17,"None",0]
[11,"A",508,"2018-07-11","PRIYANKA JAT",null,"KANARAM JAT","NORATI DEVI","F","2008-08-06",null,null,null,null,"OBC","Hindu",null,"GOVT. SENIOR SECONDARY SCHOOL MORAJHADI (214242)",8210302201,"XXXX1388","YKSOWGK",9829798229,"VILL MORAJHADI,SRINAGAR,,305402",60000,"N","N","No",17,"None",0]
[11,"A",554,"2019-07-06","RAHUL MEGHWANSHI",null,"BADRI MEGHWANSHI","GAMLA DEVI","M","2010-04-10",null,null,null,null,"SC","Hindu",null,"GOVT. SENIOR SECONDARY SCHOOL MORAJHADI (214242)",8210302201,"XXXX1599","YOYEFAC",9166341970,"Keriyakhurd,Shrinagar,Keriyakhurd,305402",50000,"N","N","No",15,"None",3]
[11,"A",917,"2024-08-14","RINKU CHOUDHARY",null,"RAMSWARUP CHOUDHARY","MEERA DEVI","F","2009-01-01",null,null,null,null,"OBC","Hindu",null,"GOVT. SENIOR SECONDARY SCHOOL MORAJHADI (214242)",8210302201,"XXXX3115","VZCSGRV",9928551738,"SURAJPURA,SRINAGAR,SURAJPURA,305813",0,"N","N","No",16,"None",0]
[11,"A",655,"2021-01-25","RINKU JAT",null,"DHANRAJ JAT","KOPAN DEVI","F","2010-03-14",null,null,null,null,"OBC","Hindu",null,"GOVT. SENIOR SECONDARY SCHOOL MORAJHADI (214242)",8210302201,"XXXX7861",null,9928265756,"VILL-RAGHUNATHPURA KHEDA,VILL-MORAJHADI ,,305402",50000,"N","N","No",15,"None",3]
[11,"A",587,"2019-07-30","SAHIL KHAN",null,"MOHAMMAD HAKIM","MUNNI BANO","M","2009-03-21",null,null,null,null,"OBC","Muslim",null,"GOVT. SENIOR SECONDARY SCHOOL MORAJHADI (214242)",8210302201,"XXXX2735","yismiig",9999999999,"Morajhadi,Shrinagar,Morajhadi,305402",48000,"N","N","Yes",16,"None",0]
[11,"A",412,"2017-07-05","SANJU PRAJAPAT",null,"HANUMAN PRAJAPAT","SAYARI","F","2008-05-20",null,null,null,null,"OBC","Hindu",null,"GOVT. SENIOR SECONDARY SCHOOL MORAJHADI (214242)",8210302201,"XXXX5017","VPCSHWJ",9460361075,"VILL MORAJHADI,TEH NASIRABAD,,305402",60000,"N","N","No",17,"None",0]
[11,"A",832,"2023-07-13","SEEMA DEVI BHEEL",null,"BHAIRU LAL BHEEL","CHANTA DEVI","F","2009-06-08",null,null,null,null,"ST","Hindu",null,"GOVT. SENIOR SECONDARY SCHOOL MORAJHADI (214242)",8210302201,"XXXX7788","VTTBRJJ",9799896135,"SURAJPURA,SHRINAGAR,SURAJPURA,305813",48000,"N","N","No",16,"None",0]
[11,"A",614,"2020-07-31","SHANKAR MEGHWANSHI",null,"SEETARAM MEGHWANSHI","MAYA DEVI","M","2010-04-16",null,null,null,null,"SC","Hindu",null,"GOVT. SENIOR SECONDARY SCHOOL MORAJHADI (214242)",8210302201,"XXXX5985",null,9950026559,"morajhadi,srinagar,morajhadi,305402",50000,"N","N","No",15,"None",0]
[11,"A",622,"2020-08-10","SUMAN DEVI MEGHWANSHI",null,"JATANARAM MEGHWANSHI","NOSHAR DEVI","F","2008-07-01",null,null,null,null,"SC",null,null,"GOVT. SENIOR SECONDARY SCHOOL MORAJHADI (214242)",8210302201,"XXXX5121",null,7976550858,"keriya khurd,srinagar,keriya khurd,305402",0,"N","N",null,17,"None",1]
[11,"A",317,null,"SUMAN PRAJAPAT",null,"MAHAVEER PRAJAPAT","FOOLA DEVI","F","2009-07-06",null,null,null,null,"OBC","Hindu",null,"GOVT. SENIOR SECONDARY SCHOOL MORAJHADI (214242)",8210302201,"XXXX6777","VPCVGWH",8003573992,"VILL MORAJHADI,SHRINAGAR,VIA RAMSAR,305402",36000,"N","N","No",16,"None",0]
[11,"A",616,"2020-08-10","YASPAL",null,"KANARAM","INDRA DEVI","M","2009-02-24",null,null,null,null,"OBC","Hindu",null,"GOVT. SENIOR SECONDARY SCHOOL MORAJHADI (214242)",8210302201,"XXXX4839",null,9001638385,"kheda raghunathpura,srinagar,kheda raghunathpura,305402",50000,"N","N","No",16,"None",3]
[12,"A",744,"2021-10-20","AISH PAL",null,"BADRI LAL","SOMA DEVI","M","2008-02-02",null,null,null,null,"ST",null,null,"GOVT. SENIOR SECONDARY SCHOOL MORAJHADI (214242)",8210302201,"XXXX0121",null,8826913669,"VILL-KHERIYA KHURD,AJMER,,305402",50000,"N","N",null,17,"None",3]
[12,"A",866,"2023-08-10","Aman Ali",null,"Shahjad Ali","Salma","M","2010-02-17",null,null,null,null,"OBC",null,null,"GOVT. SENIOR SECONDARY SCHOOL MORAJHADI (214242)",8210302201,null,null,8619199176,null,null,"N","Y",null,15,null,0]
[12,"A",414,"2017-07-06","ANIL MEGHWANSHI",null,"PANCHU RAM MEGHWANSHI","MANBHAR DEVI","M","2008-06-16",null,null,null,null,"SC","Hindu",null,"GOVT. SENIOR SECONDARY SCHOOL MORAJHADI (214242)",8210302201,"XXXX8694","YKSMUIW",9166104771,"VILL MORAJHADI,TEH NASIRABAD,,305402",40000,"N","N","No",17,"None",0]
[12,"A",241,"2015-05-12","ASHOK PRAJAPAT",null,"HARLAL PRAJAPAT","KAMLESH DEVI","M","2008-07-03",null,null,null,null,"OBC","Hindu",null,"GOVT. SENIOR SECONDARY SCHOOL MORAJHADI (214242)",8210302201,"XXXX6220","WFGCQFF",7023176175,"VILL MORAJHADI,SHRINAGAR,VIA RAMSAR,305402",36000,"Y","N","No",17,"None",0]
[12,"A",588,"2019-07-31","BASRAM CHOUDHARY",null,"GOPAL CHOUDHARY","MANDRAJ DEVI","M","2009-01-02",null,null,null,null,"OBC","Hindu",null,"GOVT. SENIOR SECONDARY SCHOOL MORAJHADI (214242)",8210302201,"XXXX4270","vrcxvnv",9999999999,"Morajhadi,Shrinagar,Morajhadi,305402",48000,"N","N","No",16,"None",0]
[12,"A",255,null,"CHHITAR JAT",null,"MISARI LAL JAT","KALI DEVI","M","2008-07-01",null,null,null,null,"OBC","Hindu",null,"GOVT. SENIOR SECONDARY SCHOOL MORAJHADI (214242)",8210302201,"XXXX9389","VZPGNHT",8290250567,"VILL MORAJHADI,SHRINAGAR,VIA RAMSAR,305402",36000,"N","N","No",17,"None",0]
[12,"A",772,"2022-07-13","Dashrath Choudhary",null,"Harikishan Choudhary","Samer Devi","M","2007-11-20",null,null,null,null,"OBC","Hindu",null,"GOVT. SENIOR SECONDARY SCHOOL MORAJHADI (214242)",8210302201,"XXXX5484",null,7877363107,"VILL-KHERIYA KHURD,AJMER,,305402",50000,"N","N","No",18,"None",1]
[12,"A",915,"2024-07-31","Dinesh Jat",null,"Shri Ram Jat","Nathi Devi","M","2009-08-07",null,null,null,null,"OBC",null,null,"GOVT. SENIOR SECONDARY SCHOOL MORAJHADI (214242)",8210302201,null,null,9929243449,null,null,"N","Y",null,16,null,3]
[12,"A",511,"2018-07-11","GANESH MEGHWANSHI",null,"PARAS MEGHWANSHI","CHANTA DEVI","M","2008-08-01",null,null,null,null,"SC","Hindu",null,"GOVT. SENIOR SECONDARY SCHOOL MORAJHADI (214242)",8210302201,"XXXX6138","VPJCSBP",9888888888,"VILL KERIYA KHURD,SRINAGAR,PO MORAJHADI,305402",40000,"N","N","No",17,"None",3]
[12,"A",281,null,"GOURA PRAJAPAT",null,"KAILASH PRAJAPAT","SAMPAT DEVI","F","2009-02-01",null,null,null,null,"OBC","Hindu",null,"GOVT. SENIOR SECONDARY SCHOOL MORAJHADI (214242)",8210302201,"XXXX4923","VGZZVSP",9799229169,"VILL MORAJHADI,SHRINAGAR,VIA RAMSAR,305402",36000,"N","N","No",16,"None",0]
[12,"A",578,"2019-07-24","GUDDA",null,"KAILASH NAYAK","SURMA DEVI","F","2008-08-31",null,null,null,null,"SC","Hindu",null,"GOVT. SENIOR SECONDARY SCHOOL MORAJHADI (214242)",8210302201,"XXXX6976","YMECKOB",9888888888,"Kheda Raghunathpura,Shrinagar,Kheda Raghunathpura,305402",48000,"N","N","No",17,"None",3]
[12,"A",910,"2024-07-31","Kana Ram Choudhary",null,"Ramraj Choudhary","Suganta Devi","M","2008-03-02",null,null,null,null,"OBC",null,null,"GOVT. SENIOR SECONDARY SCHOOL MORAJHADI (214242)",8210302201,null,null,9166813165,null,null,"N","Y",null,17,null,0]
[12,"A",262,null,"LUCKY JANGID",null,"NANDKISHOR JANGID","MAMTA DEVI","M","2008-06-15",null,null,null,null,"OBC","Hindu",null,"GOVT. SENIOR SECONDARY SCHOOL MORAJHADI (214242)",8210302201,"XXXX9609","YGBMQYO",9950699293,"VILL MORAJHADI,SHRINAGAR,VIA RAMSAR,305402",36000,"N","N","No",17,"None",0]
[12,"A",259,null,"MAHENDRA JAT",null,"KALU RAM JAT","RESH DEVI","M","2008-06-22",null,null,null,null,"OBC","Hindu",null,"GOVT. SENIOR SECONDARY SCHOOL MORAJHADI (214242)",8210302201,"XXXX9416","YGFFYUO",9001840492,"VILL MORAJHADI,SHRINAGAR,VIA RAMSAR,305402",36000,"N","N","No",17,"None",0]
[12,"A",569,"2019-07-15","MAHENDRA PRAJAPAT",null,"SHRAWAN PRAJAPAT","SANTOSH PRAJAPAT","M","2005-02-16",null,null,null,null,"OBC","Hindu",null,"GOVT. SENIOR SECONDARY SCHOOL MORAJHADI (214242)",8210302201,null,"VSPNWNV",9001131547,"Morajhadi,Shrinagar,Morajhadi,305402",48000,"N","N","No",20,"None",0]
[12,"A",269,null,"MANKHUSH CHOUDHARY",null,"RAMDEV CHOUDHARY","MANBHAR DEVI","F","2008-03-02",null,null,null,null,"OBC","Hindu",null,"GOVT. SENIOR SECONDARY SCHOOL MORAJHADI (214242)",8210302201,"XXXX3838","YIOOGKK",8890256237,"VILL MORAJHADI,SHRINAGAR,VIA RAMSAR,305402",36000,"N","N","No",17,"None",0]
[12,"A",590,"2019-08-02","NEPAL",null,"BRAHMANAND JAT","BADAM DEVI","F","2008-03-29",null,null,null,null,"OBC",null,null,"GOVT. SENIOR SECONDARY SCHOOL MORAJHADI (214242)",8210302201,"XXXX8574","ygdgyuf",8764071763,"kheda raghunathpura,shrinagar,morajhadi,305402",40000,"N","N",null,17,"None",3]
[12,"A",509,"2018-07-11","NIRMA DEVI MEGHWANSHI",null,"GANGA RAM MEGHWANSHI","LALI DEVI","F","2006-09-01",null,null,null,null,"SC","Hindu",null,"GOVT. SENIOR SECONDARY SCHOOL MORAJHADI (214242)",8210302201,"XXXX1133","VGZZVWJ",9888888888,"VILL KERYA KHURD,SRINAGAR,,305402",60000,"N","N","No",19,"None",3]
[12,"A",239,null,"NIRMA PRAJAPAT",null,"MAHAVEER PRAJAPAT","MANBHAR DEVI","F","2008-06-10",null,null,null,null,"OBC","Hindu",null,"GOVT. SENIOR SECONDARY SCHOOL MORAJHADI (214242)",8210302201,"XXXX1602","VNGOHHV",8002909894,"VILL MORAJHADI,SHRINAGAR,VIA RAMSAR,305402",48000,"N","N","No",17,"None",0]
[12,"A",512,"2018-07-11","PRIYANKA CHOUDHARY",null,"SHYOJI CHOUDHARY","KALI DEVI","F","2006-05-10",null,null,null,null,"OBC","Hindu",null,"GOVT. SENIOR SECONDARY SCHOOL MORAJHADI (214242)",8210302201,"XXXX6838","YGSFEOS",6367778732,"VILL KERIYA KHURD,SRINAGAR,,305402",60000,"N","N","No",19,"None",3]
[12,"A",849,"2023-07-19","RANJEET JAT",null,"RAM LAL JAT","KALI DEVI","M","2008-06-08",null,null,null,null,"OBC","Hindu",null,"GOVT. SENIOR SECONDARY SCHOOL MORAJHADI (214242)",8210302201,"XXXX1786","YIMYIEW",9950773319,"VILL MORAJHADI,SHRINAGAR,VIA RAMSAR,305402",48000,"N","N","No",17,"None",0]
[12,"A",246,null,"SANJAY CHOUDHARY",null,"RAMRAJ CHOUDHARY","SUGANTA DEVI","M","2009-08-02",null,null,null,null,"OBC","Hindu",null,"GOVT. SENIOR SECONDARY SCHOOL MORAJHADI (214242)",8210302201,"XXXX3835","YQCECAB",9166813165,"VILL MORAJHADI,SHRINAGAR,VIA RAMSAR,305402",50000,"N","N","No",16,"None",0]
[12,"A",242,null,"SANWAR LAL JAT",null,"BANNA LAL JAT","NEER DEVI","M","2008-07-01",null,null,null,null,"OBC","Hindu",null,"GOVT. SENIOR SECONDARY SCHOOL MORAJHADI (214242)",8210302201,"XXXX9780","WFYEONG",8890654343,"VILL MORAJHADI,SHRINAGAR,VIA RAMSAR,305402",36000,"N","N","No",17,"None",0]
[12,"A",579,"2019-07-24","SEEMA",null,"SANGRAM SINGH CHOUDHARY","MANDRAJ","F","2008-05-06",null,null,null,null,"OBC","Hindu",null,"GOVT. SENIOR SECONDARY SCHOOL MORAJHADI (214242)",8210302201,"XXXX4658","vwbrxvh",9888888888,"Kheda Raghunathpura,Shrinagar,Kheda Raghunathpura,305402",48000,"N","N","No",17,"None",3]
[12,"A",238,null,"SHIMLA PRAJAPAT",null,"GOVIND PRAJAPAT","PARSI DEVI","F","2008-07-01",null,null,null,null,"OBC","Hindu",null,"GOVT. SENIOR SECONDARY SCHOOL MORAJHADI (214242)",8210302201,"XXXX6665","VNPVOJH",7742432364,"VILL MORAJHADI,SHRINAGAR,VIA RAMSAR,305402",36000,"N","N","No",17,"None",0]
[12,"A",302,null,"SUGANTA PRAJAPAT",null,"HANSRAJ PRAJAPAT","PREM DEVI","F","2008-05-02",null,null,null,null,"OBC","Hindu",null,"GOVT. SENIOR SECONDARY SCHOOL MORAJHADI (214242)",8210302201,"XXXX8749","YIMYIAW",9929611454,"VILL MORAJHADI,SHRINAGAR,VIA RAMSAR,305402",36000,"N","N","No",17,"None",0]
[12,"A",492,"2018-07-09","SUMAN DEVI MEGHWANSHI",null,"GANGARAM MEGHWANSHI","LALI DEVI","F","2008-10-01",null,null,null,null,"SC","Hindu",null,"GOVT. SENIOR SECONDARY SCHOOL MORAJHADI (214242)",8210302201,"XXXX1705","VGZZVWT",9888888888,"VILL KERIYA KHURD,SRINAGAR,PO MORAJHADI,305402",60000,"N","N","No",17,"None",3]
[12,"A",843,"2023-07-18","SURESH JAT",null,"PRAHLAD JAT","INDRA DEVI","M","2006-07-02",null,null,null,null,"OBC","Hindu",null,"GOVT. SENIOR SECONDARY SCHOOL MORAJHADI (214242)",8210302201,"XXXX5219","YGSFIFC",9636207709,"VPO MORAJHADI,SHRINAGAR,VIA RAMSAR,305402",48000,"N","N","No",19,"None",0]
[12,"A",857,"2023-08-02","Vishram Choudhary",null,"Shyoji Choudhary","Manfool Devi","M","2008-06-08",null,null,null,null,"OBC",null,null,"GOVT. SENIOR SECONDARY SCHOOL MORAJHADI (214242)",8210302201,null,null,9571125610,null,null,"N","Y",null,17,null,0]

{"sheet":"FORM","index":2,"n_rows":55,"n_cols":12,"rows_kept":55,"cut":false,"hidden":false,"merged":[[48,7,48,9],[48,3,48,5],[54,7,55,9],[2,0,2,9],[5,0,5,2],[5,3,5,9],[51,3,51,4],[51,6,51,9],[51,0,51,2],[53,0,53,1],[53,3,53,9],[33,5,33,9],[34,1,34,7],[34,8,34,9],[29,1,29,4],[29,5,29,9],[4,11,4,12],[3,11,3,12],[6,0,6,4],[6,5,6,9],[52,0,52,9],[45,0,45,9],[38,1,38,7],[38,8,38,9],[39,1,39,7],[39,8,39,9],[40,1,40,7],[37,1,37,7],[37,8,37,9],[32,1,32,4],[32,5,32,9],[33,1,33,4],[0,0,0,9],[1,0,1,9],[50,0,50,9],[46,1,46,3],[46,4,46,9],[47,0,47,9],[48,0,48,1],[41,1,41,7],[41,8,41,9],[42,0,42,9],[44,7,44,9],[40,8,40,9],[35,1,35,7],[35,8,35,9],[36,1,36,7],[36,8,36,9],[30,1,30,4],[30,5,30,9],[31,1,31,4],[31,5,31,9],[21,1,21,4],[21,5,21,9],[28,1,28,4],[28,5,28,9],[22,1,22,4],[22,5,22,9],[23,1,23,4],[23,5,23,9],[24,1,24,4],[24,5,24,9],[25,0,25,9],[26,1,26,4],[27,1,27,4],[27,5,27,9],[18,1,18,4],[18,5,18,9],[19,1,19,4],[19,5,19,9],[20,1,20,4],[20,5,20,9],[15,1,15,4],[15,5,15,9],[16,0,17,0],[16,1,17,4],[26,5,26,9],[12,1,12,4],[12,5,12,9],[13,1,13,4],[13,5,13,9],[14,1,14,4],[14,5,14,9],[9,0,10,0],[9,5,10,9],[9,1,10,4],[11,1,11,4],[11,5,11,9],[3,0,3,3],[3,4,3,7],[7,0,7,9],[8,1,8,4],[8,5,8,9]]}
["राजस्थान सरकार"]
[{"$f":"IF(AND(F14>=0,F14<=10),\"पूर्व मैट्रिक छात्रवृत्ति योजनाओं के लिए आवेदन पत्र प्रारूप\",IF(AND(F14>=11,F14<=12),\"उत्तर मैट्रिक छात्रवृत्ति योजनाओं के लिए आवेदन पत्र प्रारूप\",\"\"))","v":"पूर्व मैट्रिक छात्रवृत्ति योजनाओं के लिए आवेदन पत्र प्रारूप"}]
["वर्ष 2025-26"]
["विद्यार्थी की छात्रवृत्ति यूनीक आई.डी.",null,null,null,null,null,null,null,null,null,null,"विधार्थी के SR नंबर डाले "]
["(पूर्ति संस्था प्रधान द्वारा शालादर्पण पोर्टल से की जायेगी)",null,null,null,null,null,null,null,null,null,null,950]
["विद्यालय का नाम",null,null,{"$f":"IFERROR(IF(INDEX('Student Record'!R:R, MATCH(L5, 'Student Record'!C:C, 0))=\"\", \"\", INDEX('Student Record'!R:R, MATCH(L5, 'Student Record'!C:C, 0))), \"\")","v":"GOVT. SENIOR SECONDARY SCHOOL MORAJHADI (214242)"}]
["छात्रवृत्ति योजना का नाम जिसके लिए आवेदन किया जा रहा है |"]
["विद्यार्थी का विवरण"]
[1,"विद्यार्थी का नाम",null,null,null,{"$f":"IFERROR(IF(INDEX('Student Record'!E:E, MATCH(L5, 'Student Record'!C:C, 0))=\"\", \"\", INDEX('Student Record'!E:E, MATCH(L5, 'Student Record'!C:C, 0))), \"\")","v":"NARAJ CHOUDHARY"}]
[2,"जन्म तिथि",null,null,null,{"$f":"IFERROR(IF(INDEX('Student Record'!J:J, MATCH(L5, 'Student Record'!C:C, 0))=\"\", \"\", INDEX('Student Record'!J:J, MATCH(L5, 'Student Record'!C:C, 0))), \"\")","v":"2011-06-07"}]
[]
[3,"धर्म (हिन्दू/मुस्लिम /सिख/ईसाई/ पारसी/बौद्ध/जैन/अन्य)",null,null,null,{"$f":"IFERROR(IF(INDEX('Student Record'!P:P, MATCH(L5, 'Student Record'!C:C, 0))=\"\", \"\", INDEX('Student Record'!P:P, MATCH(L5, 'Student Record'!C:C, 0))), \"\")","v":"Hindu"}]
[4,"लिंग (पुरुष/ महिला/ ट्रांसजेंडर)",null,null,null,{"$f":"IFERROR(IF(INDEX('Student Record'!I:I, MATCH(L5, 'Student Record'!C:C, 0))=\"\", \"\", INDEX('Student Record'!I:I, MATCH(L5, 'Student Record'!C:C, 0))), \"\")","v":"F"}]
[5,"कक्षा जिसमे अध्ययनरत है",null,null,null,{"$f":"IFERROR(IF(INDEX('Student Record'!A:A, MATCH(L5, 'Student Record'!C:C, 0))=\"\", \"\", INDEX('Student Record'!A:A, MATCH(L5, 'Student Record'!C:C, 0))), \"\")","v":8}]
[6,"विद्यार्थी का S.R. नम्बर (विद्यालय द्वारा भरा जाये)",null,null,null,{"$f":"IFERROR(IF(INDEX('Student Record'!C:C, MATCH(L5, 'Student Record'!C:C, 0))=\"\", \"\", INDEX('Student Record'!C:C, MATCH(L5, 'Student Record'!C:C, 0))), \"\")","v":950}]
[7,"गत कक्षा के विद्यालय का नाम व पता "]
[8,"गत वर्ष की कक्षा का क्रमोन्नत प्रमाण पत्र",null,null,null,"कक्षा","पूर्णांक","प्राप्तांक","ग्रेड/प्रतिशत","कक्षा क्रमोन्नत"]
[]
[9,"जाति वर्ग (अजा/अजजा/अन्य पिछड़ा वर्ग/अति पिछड़ा वर्ग/सामान्य/अल्पसंख्यक)",null,null,null,{"$f":"IFERROR(IF(INDEX('Student Record'!O:O, MATCH(L5, 'Student Record'!C:C, 0))=\"\", \"\", INDEX('Student Record'!O:O, MATCH(L5, 'Student Record'!C:C, 0))), \"\")","v":"OBC"}]
[10,"डे-स्कॉलर / होस्टलर"]
[11,"विद्यार्थी का आधार नम्बर/एनरोलमेंट नम्बर "]
[12,"जन-आधार/ एनरोलमेंट नम्बर "]
[13,"छात्र का बैंक खाता जन-आधार कार्ड से लिंक है (हाँ / नहीं)"]
[14,"विद्यार्थी का मोबाइल नम्बर",null,null,null,{"$f":"IFERROR(IF(INDEX('Student Record'!V:V, MATCH(L5, 'Student Record'!C:C, 0))=\"\", \"\", INDEX('Student Record'!V:V, MATCH(L5, 'Student Record'!C:C, 0))), \"\")","v":9925775941}]
[15,"विद्यार्थी का ई-मेल आई.डी."]
["विद्यार्थी के परिवार का विवरण"]
[16,"पिता का नाम",null,null,null,{"$f":"IFERROR(IF(INDEX('Student Record'!G:G, MATCH(L5, 'Student Record'!C:C, 0))=\"\", \"\", INDEX('Student Record'!G:G, MATCH(L5, 'Student Record'!C:C, 0))), \"\")","v":"PARMESHWAR"}]
[17,"माता का नाम",null,null,null,{"$f":"IFERROR(IF(INDEX('Student Record'!H:H, MATCH(L5, 'Student Record'!C:C, 0))=\"\", \"\", INDEX('Student Record'!H:H, MATCH(L5, 'Student Record'!C:C, 0))), \"\")","v":"Amari Devi"}]
[18,"संरक्षक का नाम (माता-पिता के जीवित ना होने पर)"]
[19,"परिवार की वार्षिक आय",null,null,null,{"$f":"IFERROR(IF(INDEX('Student Record'!X:X, MATCH(L5, 'Student Record'!C:C, 0))=\"\", \"\", INDEX('Student Record'!X:X, MATCH(L5, 'Student Record'!C:C, 0))), \"\")","v":40000}]
[20,"स्थाई पता/जिले का नाम / राज्य का नाम",null,null,null,{"$f":"IFERROR(IF(INDEX('Student Record'!W:W, MATCH(L5, 'Student Record'!C:C, 0))=\"\", \"\", INDEX('Student Record'!W:W, MATCH(L5, 'Student Record'!C:C, 0))), \"\")","v":"WARD NO 5,SRINAGAR,TIHARI,305025"}]
[21,"राशन कार्ड नम्बर"]
[22,"क्या विद्यार्थी इस छात्रवृति के अतिरिक्त अन्य किसी संस्था या सरकारी विभाग से कोई सहायता प्राप्त कर रहा है (हां/नहीं) यदि हाँ तो विवरण दे "]
[23,"केवल अस्वच्छकार योजनान्तर्गत अग्रलिखित प्रमाण-पत्र का उल्लेख करें जैसे:- (1) हाथ से मैला ढोने का (2) टेनर और फ्लेयर्स (चर्म एवं चर्मशोध से संबंधित) (3)कचरा बीनने का, (4) जोखिम के कार्यों में लगे होने का"]
["क्र.सं.","योजना के विस्तृत दिशानिर्देशों के अनुसार संलग्न किए जाने वाले दस्तावेज",null,null,null,null,null,null,"संलग्न कर टिक करें"]
[1,"माता-पिता (माता-पिता के जीवित न होने पर संरक्षक) का आय स्वघोषणा-पत्र",null,null,null,null,null,null,{"$f":"IF(A1=\"Yes\", \"☑\", \"☐\")","v":"☐"}]
[2,"छात्र/छात्रा की गत वर्ष की परीक्षा की अकवालिका/ कमोन्नत प्रमाण पत्र (स्वप्रमाणित प्रति) |",null,null,null,null,null,null,{"$f":"IF(A1=\"Yes\", \"☑\", \"☐\")","v":"☐"}]
[3,"विद्यार्थी का स्वयं का जाति प्रमाण-पत्र (स्वप्रमाणित प्रति)",null,null,null,null,null,null,{"$f":"IF(A1=\"Yes\", \"☑\", \"☐\")","v":"☐"}]
[4,"विद्यार्थी की आधार कार्ड तथा जन-आधार / भामाशाह कार्ड (स्वप्रमाणित प्रति)",null,null,null,null,null,null,{"$f":"IF(A1=\"Yes\", \"☑\", \"☐\")","v":"☐"}]
[5,"माता-पिता (माता-पिता के जीवित न होने पर संरक्षक) के सफाई से जुड़े और स्वास्थ्य के लिए जोखिमपूर्ण व्यवसाय में लिप्त होने का प्रमाण-पत्र",null,null,null,null,null,null,{"$f":"IF(A1=\"Yes\", \"☑\", \"☐\")","v":"☐"}]
[6,"माता-पिता के प्री-करगिल एवं पोस्ट करगिल युद्धों तथा विभिन्न इमरजेन्सी काउन्टरों में शहीद / स्थायी रूप से विकलांग सैनिक होने का प्रमाणपत्र",null,null,null,null,null,null,{"$f":"IF(A1=\"Yes\", \"☑\", \"☐\")","v":"☐"}]
[7,"भूतपूर्व सैनिक होने का प्रमाणपत्र (डिस्चार्ज प्रमाण-पत्र एवं परिचय पत्र अथवा जिला सैनिक कल्याण अधिकारी द्वारा जारी प्रमाणपत्र ) ",null,null,null,null,null,null,{"$f":"IF(A1=\"Yes\", \"☑\", \"☐\")","v":"☐"}]
["नोट :- वांछित दस्तावेज संलग्न करते हुए सामने के कॉलम में टिक का निशान अंकित करें |"]
[]
[null,null,null,null,null,null,null,"हस्ताक्षर विद्यार्थी"]
["माता-पिता/संरक्षक द्वारा घोषणा"]
["मै ",{"$f":"IFERROR(IF(INDEX('Student Record'!G:G, MATCH(L5, 'Student Record'!C:C, 0))=\"\", \"\", INDEX('Student Record'!G:G, MATCH(L5, 'Student Record'!C:C, 0))), \"\")","v":"PARMESHWAR"},null,null,"(माता-पिता / संरक्षक) घोषणा करता हूँ / करती हूँ की मैने योजना संबंधी "]
["सभी नियमों/निर्देशों की भली भांति अध्ययन कर लिया है। छात्र/छात्रा के मूल दस्तावेजों में अंकित आधार नम्बर, जन - आधार कार्य सही है एवं\nछात्र/छात्रा किसी अन्य प्रकार की छात्रवृत्ति प्राप्त नहीं कर रहा है | विद्यार्थी का बैंक खाता उसके आधार से सीडेड तथा जन-आधार कार्ड से लिंक है|\n मेरे द्वारा प्रस्तुत उपरोक्त विवरण, संलग्न दस्तावेज, इस घोषणा में अंकित सूचनाएं गलत पाये जाने की स्थिति में यदि छात्रवृत्ति प्राप्त नहीं होती है तो \nइसका समस्त दायित्व मेरा स्वयं का होगा | भविष्य में किसी भी प्रकार की जांच प्रक्रिया में मेरे द्वारा प्रस्तुत सूचनाएं अथवा दस्तावेज गलत पाए जाने \nकी स्थिति में मेरे विरूद्ध पुलिस / वैधानिक कार्यवाही की जा सकेगी तथा मै प्राप्त छात्रवृति वापिस जमा करवाने का वचन देता हूँ / देती हूँ।"]
["दिनांक ::",null,null,"हस्ताक्षर जांचकर्ता/कक्षाध्यापक",null,null,null,"माता-पिता/संरक्षक के हस्ताक्षर"]
[]
["संस्थाप्रधान द्वारा प्रमाणीकरण"]
["प्रमाणित किया जाता है कि छात्र/छात्रा",null,null,{"$f":"IFERROR(IF(INDEX('Student Record'!E:E, MATCH(L5, 'Student Record'!C:C, 0))=\"\", \"\", INDEX('Student Record'!E:E, MATCH(L5, 'Student Record'!C:C, 0))), \"\")","v":"NARAJ CHOUDHARY"},null," पुत्र/पुत्री",{"$f":"IFERROR(IF(INDEX('Student Record'!G:G, MATCH(L5, 'Student Record'!C:C, 0))=\"\", \"\", INDEX('Student Record'!G:G, MATCH(L5, 'Student Record'!C:C, 0))), \"\")","v":"PARMESHWAR"}]
["के छात्रवृत्ति आवेदन की जांच कर ली गई है आवेदन पत्र के साथ समस्त वांछित संलग्नक लगे हुए हैं। छात्र/छात्रा द्वारा प्रस्तुत आधार नम्बर जन-आधार कार्ड एवं आय घोषणा पत्र आदि को शालादर्पण पोर्टल पर अपडेट कर लिया गया है।"]
[" छात्र/छात्रा को ",null,{"$f":"A3","v":"वर्ष 2025-26"}," की छात्रवृत्ति स्वीकृत की जाती है।\""]
[null,null,null,null,null,null,null,"संस्था प्रधान के हस्ताक्षर मय मोहर"]